Workbook

Sheet HOME
AI1: 0 | AJ1: 30000 | AM1: 1 | AN1: 0.0001 | AO1: =AN1*10000 -> 1 | AQ1: chosen:
B2: SYSTEM SETTINGS | E2: Global SB Change: | G2: 0.1 | L2: ANIMATION SETTINGS | O2: 1 | P2: 2 | Q2: 3 | S2: ANALYSIS SETTINGS | X2: GUYAN CONDENSATION | AI2: 0 | AJ2: 30000 | AM2: 2 | AN2: 0.0002 | AO2: =AN2*10000 -> 2 | AQ2: 10 | AR2: =VLOOKUP(AQ2,AM1:AN25,2) -> 0.1 | AS2: =VLOOKUP(AQ2,AM1:AO25,3) -> 1000
E3: 1 | G3: 2 | I3: 3 | L3: shaft left from spring [m] | O3: 5 | P3: 5 | Q3: 5 | S3: TYPE: | X3: =IF(AJ50=1,"ON","OFF") -> OFF | AI3: 0 | AJ3: 30000 | AM3: 3 | AN3: 0.0005 | AO3: 5
B4: mass | D4: m [kg] | E4: 5 | G4: 3 | I4: 2 | L4: shaft right from spring [m] | O4: 5 | P4: 5 | Q4: 5 | S4: SOLVER: | AM4: 4 | AN4: 0.001 | AO4: 10 | AQ4: 50000 | AR4: 30000 | AS4: 20000
B5: damping | D5: k [Ns/m] | E5: 0.1 | G5: 0.3 | I5: 0.2 | L5: spring number of turns | O5: 10 | P5: 10 | Q5: 10 | S5: TIMESTEP [SEC]: | U5: 0.1 | X5: MASTER DOFS: | AI5: =CALC!E36+HOME!AJ13+30000 -> 29967.0771 | AJ5: =CALC!E36+HOME!AK13+30000 -> 30047.0771 | AK5: 30007.0771 | AM5: 5 | AN5: 0.002 | AO5: 20 | AQ5: 1000 | AR5: 3000 | AS5: 2000
B6: spring rate | D6: c [m/N] | E6: 20 | G6: 50 | I6: 40 | L6: spring shape | O6: 0.2 | P6: 0.2 | Q6: 0.2 | AI6: =CALC!E37+HOME!AJ14+30000 -> 29980.53891 | AJ6: =CALC!E37+HOME!AK14+30000 -> 30060.53891 | AK6: 30013 | AM6: 6 | AN6: 0.005 | AO6: 50 | AQ6: 200000 | AR6: 500000 | AS6: 400000
B7: excitation force | D7: F [N] | E7: 20 | G7: 10 | I7: 30 | L7: diameter of springs [m] | O7: 2 | P7: 2 | Q7: 2 | AI7: =CALC!E38+HOME!AJ15+30000 -> 29996.59669 | AJ7: =CALC!E38+HOME!AK15+30000 -> 30076.59669 | AK7: 30036.59669 | AM7: 7 | AN7: 0.01 | AO7: 100 | AQ7: 200000 | AR7: 100000 | AS7: 300000
B8: ang. freqvency | D8: ω [rad/s] | E8: 0.5 | G8: 2 | I8: 1 | L8: position of springs [m] | O8: 4.5 | P8: 4.5 | Q8: 4.5 | AM8: 8 | AN8: 0.02 | AO8: 200 | AQ8: 5000 | AR8: 20000 | AS8: 10000
B9: initial angle | D9: ε [rad] | E9: -1 | G9: 1.5 | I9: 0.6 | L9: wagons width [m] | O9: 20 | P9: 20 | Q9: 20 | AM9: 9 | AN9: 0.05 | AO9: 500 | AQ9: -10000 | AR9: 15000 | AS9: 6000
B10: initial position | D10: x0 [m] | E10: -10 | G10: 15 | I10: -5 | L10: wagons bottom [m] | O10: 1.5 | P10: 1.5 | Q10: 1.5 | AI10: ANALYTIC | AJ10: RK4 | AM10: 10 | AN10: 0.1 | AO10: 1000 | AQ10: -100000 | AR10: 150000 | AS10: -50000
B11: initial velocity | D11: v0 [m/s] | E11: -5 | G11: 0 | I11: 0 | L11: wagons top [m] | O11: 8 | P11: 8 | Q11: 8 | S11: t= | T11: =IF(CALC!C1=1,CALC!Z4,CALC!BU3) -> 0 | V11: S | AI11: RK4 | AM11: 11 | AN11: 0.2 | AO11: 2000 | AQ11: -50000 | AR11: 0 | AS11: 0
AJ12: min | AK12: max | AM12: 12 | AN12: 0.5 | AO12: 5000
B13: JOLT | C13: =IF(CALC!B36=0,"RELEASED","GRABBED") -> RELEASED | E13: AMP | F13: 40 | H13: neut.pos | I13: rel.pos | J13: abs.pos | K13: =IF(CALC!B37=0,"RELEASED","GRABBED") -> RELEASED | M13: AMP | N13: 40 | P13: neut.pos | Q13: rel.pos | R13: abs.pos | S13: =IF(CALC!B38=0,"RELEASED","GRABBED") -> RELEASED | U13: AMP | V13: 40 | X13: neut.pos | Y13: rel.pos | Z13: abs.pos | AA13: GRAB/RELEASE ALL | AI13: sb4 | AJ13: =-F13 -> -40 | AK13: =F13 -> 40 | AM13: 13 | AN13: 1 | AO13: 10000
B14: WITH | H14: =ANIMATION!$B$81 -> 44 | I14: =ANIMATION!$B$1 -> -10 | J14: =H14+I14 -> 34 | P14: =ANIMATION!$B$84 -> 98 | Q14: =ANIMATION!$B$2 -> 15 | R14: =P14+Q14 -> 113 | X14: =ANIMATION!$B$87 -> 152 | Y14: =ANIMATION!$B$3 -> -5 | Z14: =X14+Y14 -> 147 | AA14: =IF(CALC!B35=1,"GRABBED","RELEASED") -> RELEASED | AI14: sb5 | AJ14: =-N13 -> -40 | AK14: =N13 -> 40 | AM14: 14 | AN14: 2 | AO14: 20000 | AQ14: chosen:
B15: DISPLA- | AI15: sb6 | AJ15: =-V13 -> -40 | AK15: =V13 -> 40 | AM15: 15 | AN15: 5 | AO15: 50000 | AQ15: 15 | AR15: =VLOOKUP(AQ15,AM1:AN25,2) -> 5 | AS15: =VLOOKUP(AQ15,AM1:AO25,3) -> 50000
B16: CEMENT | AM16: 16 | AN16: 10 | AO16: 100000
AI17: sb1 | AJ17: =-F37 -> -8 | AK17: =F37 -> 8 | AM17: 17 | AN17: 20 | AO17: 200000 | AQ17: x min | AR17: 0
AI18: sb2 | AJ18: =-N37 -> -8 | AK18: =N37 -> 8 | AM18: 18 | AN18: 50 | AO18: 500000 | AQ18: x max | AR18: 400000
AI19: sb3 | AJ19: =-V37 -> -8 | AK19: =V37 -> 8 | AM19: 19 | AN19: 100 | AO19: 1000000 | AQ19: x unit | AR19: 10000
AM20: 20 | AN20: 200 | AO20: 2000000
AI21: amplitudes | AM21: 21 | AN21: 500 | AO21: 5000000 | AQ21: y min | AR21: 0
AI22: D1 | AJ22: 400000 | AM22: 22 | AN22: 1000 | AO22: 10000000 | AQ22: y max | AR22: 500000
AI23: D2 | AJ23: 400000 | AM23: 23 | AN23: 2000 | AO23: 20000000 | AQ23: y unit | AR23: 20000
AI24: D3 | AJ24: 400000 | AM24: 24 | AN24: 5000 | AO24: 50000000
AI25: F1 | AJ25: 80000 | AM25: 25 | AN25: 10000 | AO25: 100000000
AI26: F2 | AJ26: 80000
AI27: F3 | AJ27: 80000
AI28: timestep | AJ28: 1000
AI30: x move | AJ30: 30000 | AK30: =AJ30-30000 -> 0
AI31: max | AJ31: =MIN(ANIMATION!B136,B34) -> 0
AI32: min | AJ32: =MAX(ANIMATION!B135,C34) -> 200
B33: x min | C33: x max | D33: x unit
B34: 0 | C34: 200 | D34: 20 | AI34: x med | AJ34: 40
B35: JOLT WITH FORCE | AC35: =AK30 -> 0 | AI35: x amp | AJ35: 20
AI36: y med | AJ36: =(N41+N42)/2 -> 25
C37: =IF($AI$1=0,"PRE DEFINED","MANUAL") -> PRE DEFINED | E37: AMP | F37: 8 | H37: F= | I37: =IF(AI1=0,CALC!AA4,CALC!AA3) -> -16.8294197 | K37: =IF($AI$2=0,"PRE DEFINED","MANUAL") -> PRE DEFINED | M37: AMP | N37: 8 | P37: F= | Q37: =IF(AI2=0,CALC!AB4,CALC!AB3) -> 9.974949866 | S37: =IF($AI$3=0,"PRE DEFINED","MANUAL") -> PRE DEFINED | U37: AMP | V37: 8 | X37: F= | Y37: =IF(AI3=0,CALC!AC4,CALC!AC3) -> 16.9392742 | AI37: y amp | AJ37: =ABS(N42-AJ36) -> 25
AI39: plot_an
B40: NATURAL FREQUENCIES AND MODES | J40: DISPLACEMENT IN FUNCZION OF TIME | AI40: plot_rk
B41: 1st natural frequency: | E41: α1= | F41: =CALC!E20 -> 0.04893280275 | H41: rad/s | J41: x min | K41: 0 | M41: y min | N41: 0 | P41: SB Change | S41: MOVE ON X AXIS | V41: PLOTTING SETTINGS
J42: x max | K42: 40 | M42: y max | N42: 50 | P42: 5 | V42: ANALYTIC: | X42: =IF(CALC!B41=1,"YES","NO") -> NO | Z42: RK4: | AB42: =IF(CALC!B40=1,"YES","NO") -> NO
J43: x unit | K43: 1 | M43: y unit | N43: 2 | AI43: STATIC | AJ43: DYNAMIC
AI44: DYNAMIC
AI46: 1 and 2 | AJ46: 2 and 3
AI47: 1 and 3
AI48: 2 and 3
AI50: GUYAN: | AJ50: 0
B53: 2nd natural frequency: | E53: α2= | F53: =CALC!E21 -> 0.1170378977 | H53: rad/s
B65: 3rd natural frequency: | E65: α3= | F65: =CALC!E22 -> 0.1593979653 | H65: rad/s

Sheet CARDANO
A1: INPUT: | D1: CALC:
A2: a | B2: =CALC!E15 -> -30 | D2: A | E2: =(27*B2^2*B4-9*B2*B3^2)/(27*B2^3) -> -0.0001324166667 | F2: p | G2: =-1*(B3/(3*B2)) -> 0.01383333333
A3: b | B3: =CALC!E16 -> 1.245 | D3: B | E3: =(2*B3^3-9*B2*B3*B4+27*B2^2*B5)/(27*B2^3) -> -1.793518519e-08 | F3: k | G3: =-1*(E3/2) -> 8.967592593e-09
A4: c | B4: =CALC!E17 -> -0.01325 | D4: Δ | E4: =(E3/2)^2+(E2/3)^3 -> -8.591279793e-14 | F4: g | G4: =IF(E4>=0,(E4)^0.5,"") -> 
A5: d | B5: =CALC!E18 -> 2.5e-05 | F5: l | G5: =-1*(E2/3) -> 4.413888889e-05
A7: RESULTS:
B8: Re | C8: Im
A9: x1 | B9: =IF(E4>=0,G2+(G3+G4)^(1/3)+(G3-G4)^(1/3),G2+2*G5^0.5*COS((1/3)*ACOS(G3/G5^(3/2)))) -> 0.02540771133
A10: x2 | B10: =IF(E4>=0,G2-(1/2)*((G3+G4)^(1/3)+(G3-G4)^(1/3)),G2+2*G5^0.5*COS((2*PI()/3)+(1/3)*ACOS(G3/G5^(3/2)))) -> 0.002394419185 | C10: =IF(E4>=0,((3^0.5)/2)*((G3+G4)^(1/3)-(G3-G4)^(1/3)),"") -> 
A11: x3 | B11: =IF(E4>=0,G2-(1/2)*((G3+G4)^(1/3)+(G3-G4)^(1/3)),G2+2*G5^0.5*COS((2*PI()/3)-(1/3)*ACOS(G3/G5^(3/2)))) -> 0.01369786949 | C11: =IF(E4>=0,-1*((3^0.5)/2)*((G3+G4)^(1/3)-(G3-G4)^(1/3)),"") -> 

Sheet GUYAN
A1: 1 | B1: 2 | C1: 3 | D1: 4 | E1: 5 | F1: 6 | G1: 7 | H1: 8 | I1: 9 | J1: 10 | K1: 11 | L1: 12 | M1: 13 | N1: 14 | O1: 15 | P1: 16 | Q1: 17 | R1: 18 | S1: 19 | T1: 20 | U1: 21 | V1: 22 | W1: 23 | X1: 24 | Y1: 25 | Z1: 26 | AA1: 27 | AB1: 28 | AC1: 29 | AD1: 30 | AE1: 31 | AF1: 32 | AG1: 33 | AH1: 34
A2: master nodes: | C2: 1 | D2: 1 and2 | F2: 1 | I2: 2 | L2: 3
C3: 2 | D3: 1 and 3
C4: 3 | D4: 2 and 3 | E4: M_mm= | F4: =B8 -> 5 | G4: =C8 -> 0 | I4: =B8 -> 5 | J4: =D8 -> 0 | L4: =C9 -> 3 | M4: =D9 -> 0
B5: chosen: | C5: 1 | F5: =B9 -> 0 | G5: =C9 -> 3 | I5: =B10 -> 0 | J5: =D10 -> 2 | L5: =C10 -> 0 | M5: =D10 -> 2
A7: INPUT | E7: M_ss= | F7: =D10 -> 2 | I7: =C9 -> 3 | L7: =B8 -> 5
B8: =CALC!E2 -> 5 | C8: =CALC!F2 -> 0 | D8: =CALC!G2 -> 0
A9: M= | B9: =CALC!E3 -> 0 | C9: =CALC!F3 -> 3 | D9: =CALC!G3 -> 0 | E9: M_sm= | F9: =B10 -> 0 | G9: =C10 -> 0 | I9: =B9 -> 0 | J9: =D9 -> 0 | L9: =C8 -> 0 | M9: =D8 -> 0
B10: =CALC!E4 -> 0 | C10: =CALC!F4 -> 0 | D10: =CALC!G4 -> 2
E11: M_ms | F11: =D8 -> 0 | I11: =C8 -> 0 | L11: =B9 -> 0
B12: =CALC!E10 -> 0.07 | C12: =CALC!F10 -> -0.02 | D12: =CALC!G10 -> 0 | F12: =D9 -> 0 | I12: =C10 -> 0 | L12: =B10 -> 0
A13: K= | B13: =CALC!E11 -> -0.02 | C13: =CALC!F11 -> 0.045 | D13: =CALC!G11 -> -0.025
B14: =CALC!E12 -> 0 | C14: =CALC!F12 -> -0.025 | D14: =CALC!G12 -> 0.025 | E14: K_mm | F14: =B12 -> 0.07 | G14: =C12 -> -0.02 | I14: =B12 -> 0.07 | J14: =D12 -> 0 | L14: =C13 -> 0.045 | M14: =D13 -> -0.025
F15: =B13 -> -0.02 | G15: =C13 -> 0.045 | I15: =B14 -> 0 | J15: =D14 -> 0.025 | L15: =C14 -> -0.025 | M15: =D14 -> 0.025
B16: =CALC!E6 -> 0.4 | C16: =CALC!F6 -> -0.3 | D16: =CALC!G6 -> 0
A17: D= | B17: =CALC!E7 -> -0.3 | C17: =CALC!F7 -> 0.5 | D17: =CALC!G7 -> -0.2 | E17: K_ss | F17: =D14 -> 0.025 | I17: =C13 -> 0.045 | L17: =B12 -> 0.07
B18: =CALC!E8 -> 0 | C18: =CALC!F8 -> -0.2 | D18: =CALC!G8 -> 0.2
E19: K_sm | F19: =B14 -> 0 | G19: =C14 -> -0.025 | I19: =B13 -> -0.02 | J19: =D13 -> -0.025 | L19: =C12 -> -0.02 | M19: =D12 -> 0
B20: 1 | C20: 2 | D20: 3
A21: F= | B21: =HOME!E7 -> 20 | C21: =HOME!G7 -> 10 | D21: =HOME!I7 -> 30 | E21: K_ms | F21: =D12 -> 0 | I21: =C12 -> -0.02 | L21: =B13 -> -0.02
A22: ω= | B22: =HOME!E8 -> 0.5 | C22: =HOME!G8 -> 2 | D22: =HOME!I8 -> 1 | F22: =D13 -> -0.025 | I22: =C14 -> -0.025 | L22: =B14 -> 0
A23: ε= | B23: =HOME!E9 -> -1 | C23: =HOME!G9 -> 1.5 | D23: =HOME!I9 -> 0.6
E24: D_mm | F24: =B16 -> 0.4 | G24: =C16 -> -0.3 | I24: =B16 -> 0.4 | J24: =D16 -> 0 | L24: =C17 -> 0.5 | M24: =D17 -> -0.2
B25: =B21 -> 20 | F25: =B17 -> -0.3 | G25: =C17 -> 0.5 | I25: =B18 -> 0 | J25: =D18 -> 0.2 | L25: =C18 -> -0.2 | M25: =D18 -> 0.2
A26: F= | B26: =C21 -> 10
B27: =D21 -> 30 | E27: D_ss | F27: =D18 -> 0.2 | I27: =C17 -> 0.5 | L27: =B16 -> 0.4
E29: D_sm | F29: =B18 -> 0 | G29: =C18 -> -0.2 | I29: =B17 -> -0.3 | J29: =D17 -> -0.2 | L29: =C16 -> -0.3 | M29: =D16 -> 0
E31: D_ms | F31: =D16 -> 0 | I31: =C16 -> -0.3 | L31: =B17 -> -0.3
F32: =D17 -> -0.2 | I32: =C18 -> -0.2 | L32: =B18 -> 0
E34: R_G | F34: =-1*MMULT(MINVERSE(F17),F19:G19) -> 0 | G34: 1 | I34: =-1*MMULT(MINVERSE(I17),I19:J19) -> 0.4444444444 | J34: 0.5555555556 | L34: =-1*(MMULT(MINVERSE(L17),L19:M19)) -> 0.2857142857 | M34: 0
E37: T_G | F37: 1 | G37: 0 | I37: 1 | J37: 0 | L37: =L34 -> 0.2857142857 | M37: =M34 -> 0
F38: 0 | G38: 1 | I38: =I34 -> 0.4444444444 | J38: =J34 -> 0.5555555556 | L38: 1 | M38: 0
F39: =F34 -> 0 | G39: =G34 -> 1 | I39: 0 | J39: 1 | L39: 0 | M39: 1
E41: T_G_T | F41: =TRANSPOSE(F37:G39) -> 1 | G41: 0 | H41: 0 | I41: =TRANSPOSE(I37:J39) -> 1 | J41: 0.4444444444 | K41: 0 | L41: =TRANSPOSE(L37:M39) -> 0.2857142857 | M41: 1 | N41: 0
F42: 0 | G42: 1 | H42: 1 | I42: 0 | J42: 0.5555555556 | K42: 1 | L42: 0 | M42: 0 | N42: 1
E44: TGT*Mn | F44: =MMULT(F41:H42,B8:D10) -> 5 | G44: 0 | H44: 0 | I44: =MMULT(I41:K42,B8:D10) -> 5 | J44: 1.333333333 | K44: 0 | L44: =MMULT(L41:N42,B8:D10) -> 1.428571429 | M44: 3 | N44: 0
F45: 0 | G45: 3 | H45: 2 | I45: 0 | J45: 1.666666667 | K45: 2 | L45: 0 | M45: 0 | N45: 2
E47: TGT*Kn | F47: =MMULT(F41:H42,B12:D14) -> 0.07 | G47: -0.02 | H47: 0 | I47: =MMULT(I41:K42,B12:D14) -> 0.06111111111 | J47: -3.469446952e-18 | K47: -0.01111111111 | L47: =MMULT(L41:N42,B12:D14) -> 0 | M47: 0.03928571429 | N47: -0.025
F48: -0.02 | G48: 0.02 | H48: 0 | I48: -0.01111111111 | J48: 0 | K48: 0.01111111111 | L48: 0 | M48: -0.025 | N48: 0.025
E51: TGT*Dn | F51: =MMULT(F41:H42,B16:D18) -> 0.4 | G51: -0.3 | H51: 0 | I51: =MMULT(I41:K42,B16:D18) -> 0.2666666667 | J51: -0.07777777778 | K51: -0.08888888889 | L51: =MMULT(L41:N42,B16:D18) -> -0.1857142857 | M51: 0.4142857143 | N51: -0.2
F52: -0.3 | G52: 0.3 | H52: 0 | I52: -0.1666666667 | J52: 0.07777777778 | K52: 0.08888888889 | L52: 0 | M52: -0.2 | N52: 0.2
E54: Fm | F54: =B25 -> 20 | I54: =B25 -> 20 | L54: =B26 -> 10
F55: =B26 -> 10 | I55: =B27 -> 30 | L55: =B27 -> 30
E57: Fs | F57: =B27 -> 30 | I57: =B26 -> 10 | L57: =B25 -> 20
E59: RGT | F59: =TRANSPOSE(F34:G34) -> 0 | I59: =TRANSPOSE(I34:J34) -> 0.4444444444 | L59: =TRANSPOSE(L34:M34) -> 0.2857142857
F60: 1 | I60: 0.5555555556 | L60: 0
E62: RGTF | F62: =MMULT(F59:F60,F57) -> 0 | I62: =MMULT(I59:I60,I57) -> 4.444444444 | L62: =MMULT(L59:L60,L57) -> 5.714285714
F63: 30 | I63: 5.555555556 | L63: 0
E66: MG | F66: =MMULT(F44:H45,F37:G39) -> 5 | G66: 0 | I66: =MMULT(I44:K45,I37:J39) -> 5.592592593 | J66: 0.7407407407 | L66: =MMULT(L44:N45,L37:M39) -> 3.408163265 | M66: 0
F67: 0 | G67: 5 | I67: 0.7407407407 | J67: 2.925925926 | L67: 0 | M67: 2
E69: KG | F69: =MMULT(F47:H48,F37:G39) -> 0.07 | G69: -0.02 | I69: =MMULT(I47:K48,I37:J39) -> 0.06111111111 | J69: -0.01111111111 | L69: =MMULT(L47:N48,L37:M39) -> 0.03928571429 | M69: -0.025
F70: -0.02 | G70: 0.02 | I70: -0.01111111111 | J70: 0.01111111111 | L70: -0.025 | M70: 0.025
E72: DG | F72: =MMULT(F51:H52,F37:G39) -> 0.4 | G72: -0.3 | I72: =MMULT(I51:K52,I37:J39) -> 0.2320987654 | J72: -0.1320987654 | L72: =MMULT(L51:N52,L37:M39) -> 0.3612244898 | M72: -0.2
F73: -0.3 | G73: 0.3 | I73: -0.1320987654 | J73: 0.1320987654 | L73: -0.2 | M73: 0.2
E75: FG | F75: =F54:F55+F62:F63 -> 20 | I75: =I62:I63+I54:I55 -> 24.44444444 | L75: =L62:L63+L54:L55 -> 15.71428571
F76: 40 | I76: 35.55555556 | L76: 30
E79: pf | F79: =CALC!B23 -> -10 | I79: =CALC!B23 -> -10 | L79: =CALC!B24 -> 15
F80: =CALC!B24 -> 15 | I80: =CALC!B25 -> -5 | L80: =CALC!B25 -> -5
F82: =CALC!B26 -> -5 | I82: =CALC!B26 -> -5 | L82: =CALC!B27 -> 0
F83: =CALC!B27 -> 0 | I83: =CALC!B28 -> 0 | L83: =CALC!B28 -> 0
E86: F | F86: =CALC!B32 -> 0 | G86: =CALC!C32 -> 0 | I86: =CALC!B32 -> 0 | J86: =CALC!C32 -> 0 | L86: =CALC!B33 -> 0 | M86: =CALC!C33 -> 0
E87: F | F87: =CALC!B33 -> 0 | G87: =CALC!C33 -> 0 | I87: =CALC!B34 -> 0 | J87: =CALC!C34 -> 0 | L87: =CALC!B34 -> 0 | M87: =CALC!C34 -> 0
E89: x | F89: =CALC!B36 -> 0 | G89: =CALC!C36 -> 7.077097822 | I89: =CALC!B36 -> 0 | J89: =CALC!C36 -> 7.077097822 | L89: =CALC!B37 -> 0 | M89: =CALC!C37 -> 13
E90: x | F90: =CALC!B37 -> 0 | G90: =CALC!C37 -> 13 | I90: =CALC!B38 -> 0 | J90: =CALC!C38 -> 36.5966941 | L90: =CALC!B38 -> 0 | M90: =CALC!C38 -> 36.5966941
E94: ω1= | F94: =B22 -> 0.5 | I94: =B22 -> 0.5 | L94: =C22 -> 2
E95: ε1= | F95: =B23 -> -1 | I95: =B23 -> -1 | L95: =C23 -> 1.5
E96: ω2= | F96: =C22 -> 2 | I96: =C22 -> 2 | L96: =D22 -> 1
E97: ε2= | F97: =C23 -> 1.5 | I97: =C23 -> 1.5 | L97: =D23 -> 0.6

Sheet CALC
A1: INPUT: | B1: rk1an2 | C1: =IF(HOME!AJ10="RK4",1,2) -> 1 | I1: sajátértékfeladat | M1: sajátvektorok | W1: plot | Y1: 25 | Z1: t | AA1: F(t) | AD1: F(t+dt/2) | AG1: F(t+dt) | AJ1: v(t) | AM1: q(t) | AP1: dq1 | AS1: dv1 | AV1: dq2 | AY1: dv2 | BB1: dq3 | BE1: dv3 | BH1: dq4 | BK1: dv4 | BN1: dq | BQ1: dv | BU1: =B30 -> 0.1 | BV1: 74 | CF1: t | CG1: F(t) | CJ1: F(t+dt/2) | CM1: F(t+dt) | CP1: v(t) | CS1: q(t) | CV1: dq1 | CY1: dv1 | DB1: dq2 | DE1: dv2 | DH1: dq3 | DK1: dv3 | DN1: dq4 | DQ1: dv4 | DT1: dq | DW1: dv
A2: m1= | B2: =HOME!E4 -> 5 | E2: =B2 -> 5 | F2: 0 | G2: 0 | I2: =E10-E2*$E$20^2 -> 0.05802790408 | J2: -0.02 | K2: 0 | N2: α1= | O2: α2= | P2: α3= | X2: 4 | AA2: 1 | AB2: 2 | AC2: 3 | AD2: 1 | AE2: 2 | AF2: 3 | AG2: 1 | AH2: 2 | AI2: 3 | AJ2: 1 | AK2: 2 | AL2: 3 | AM2: 1 | AN2: 2 | AO2: 3 | AP2: 1 | AQ2: 2 | AR2: 3 | AS2: 1 | AT2: 2 | AU2: 3 | AV2: 1 | AW2: 2 | AX2: 3 | AY2: 1 | AZ2: 2 | BA2: 3 | BB2: 1 | BC2: 2 | BD2: 3 | BE2: 1 | BF2: 2 | BG2: 3 | BH2: 1 | BI2: 2 | BJ2: 3 | BK2: 1 | BL2: 2 | BM2: 3 | BN2: 1 | BO2: 2 | BP2: 3 | BQ2: 1 | BR2: 2 | BS2: 3 | BV2: qh1 | BW2: qh2 | BX2: qh3 | BY2: qp1 | BZ2: qp2 | CA2: qp3 | CB2: q1 | CC2: q2 | CD2: q3 | CG2: 1 | CH2: 2 | CI2: 3 | CJ2: 1 | CK2: 2 | CL2: 3 | CM2: 1 | CN2: 2 | CO2: 3 | CP2: 1 | CQ2: 2 | CR2: 3 | CS2: 1 | CT2: 2 | CU2: 3 | CV2: 1 | CW2: 2 | CX2: 3 | CY2: 1 | CZ2: 2 | DA2: 3 | DB2: 1 | DC2: 2 | DD2: 3 | DE2: 1 | DF2: 2 | DG2: 3 | DH2: 1 | DI2: 2 | DJ2: 3 | DK2: 1 | DL2: 2 | DM2: 3 | DN2: 1 | DO2: 2 | DP2: 3 | DQ2: 1 | DR2: 2 | DS2: 3 | DT2: 1 | DU2: 2 | DV2: 3 | DW2: 1 | DX2: 2 | DY2: 3
A3: m2= | B3: =HOME!G4 -> 3 | D3: M= | E3: 0 | F3: =B3 -> 3 | G3: 0 | I3: -0.02 | J3: 0.03781674245 | K3: -0.025 | M3: q1 | N3: 1 | O3: 1 | P3: 1 | Q3: =B23-IF($O$21="f",J20,0) -> -24.09833434 | U3: =MINVERSE(E2:G4) -> 0.2 | V3: 0 | W3: 0 | Y3: t1 | Z3: =Z4+$B$30 -> 0.1 | AA3: =IF(B32=1,C32,$B$14*SIN($B$15*$Z$3+$B$16)) -> -16.2683101 | AB3: =IF(B33=1,C33,$B$17*SIN($B$18*$Z$3+$B$19)) -> 9.916648105 | AC3: =IF(B34=1,C34,$B$20*SIN($B$21*$Z$3+$B$22)) -> 19.32653062 | AD3: =IF(B32=1,C32,$B$14*SIN($B$15*($Z$3+$B$30/2)+$B$16)) -> -15.97241526 | AE3: =IF(B33=1,C33,$B$17*SIN($B$18*($Z$3+$B$30/2)+$B$19)) -> 9.738476309 | AF3: =IF(B34=1,C34,$B$20*SIN($B$21*($Z$3+$B$30/2)+$B$22)) -> 20.4491628 | AG3: =IF(B32=1,C32,$B$14*SIN($B$15*($Z$3+$B$30)+$B$16)) -> -15.66653819 | AH3: =IF(B33=1,C33,$B$17*SIN($B$18*($Z$3+$B$30)+$B$19)) -> 9.463000877 | AI3: =IF(B34=1,C34,$B$20*SIN($B$21*($Z$3+$B$30)+$B$22)) -> 21.52068273 | AJ3: =IF(B36=1,0,$AJ$4+$BQ$3) -> -5.268854753 | AK3: =IF(B37=1,0,$AK$4+$BR$3) -> 0.2487398776 | AL3: =IF(B38=1,0,$AL$4+$BS$3) -> 0.9290823535 | AM3: =IF(AND($B$45=1,$B$32=1),M44,IF(AND($B$45=1,$B$32=0),$M$40*SIN($B$15*Z3+$B$16),IF(B36=1,C36,$AM$4+$BN$3))) -> -10.51357268 | AN3: =IF(AND($B$45=1,$B$33=1),M45,IF(AND($B$45=1,$B$33=0),$M$41*SIN($B$18*Z3+$B$19),IF(B37=1,C37,$AN$4+$BO$3))) -> 15.01246129 | AO3: =IF(AND($B$45=1,$B$34=1),M46,IF(AND($B$45=1,$B$34=0),$M$42*SIN($B$21*Z3+$B$22),IF(B38=1,C38,$AO$4+$BP$3))) -> -4.954483553 | AP3: =$B$30*$AJ$4 -> -0.5 | AQ3: =$B$30*$AK$4 -> 0 | AR3: =$B$30*$AL$4 -> 0 | AS3: =$B$30*(MMULT($AA$4:$AC$4,$U$3:$W$5)-MMULT($AM$4:$AO$4,$U$7:$W$9)-MMULT($AJ$4:$AL$4,$U$11:$W$13)) -> -0.2765883939 | AT3: 0.2491649955 | AU3: 0.8719637101 | AV3: =$B$30*($AJ$4+$AS$3/2) -> -0.5138294197 | AW3: =$B$30*(AK4+AT3/2) -> 0.01245824978 | AX3: =$B$30*(AL4+AU3/2) -> 0.0435981855 | AY3: =$B$30*(MMULT($AD$4:$AF$4,$U$3:$W$5)-MMULT(($AM$4:$AO$4)+0.5*($AP$3:$AR$3),$U$7:$W$9)-MMULT(($AJ$4:$AL$4)+0.5*($AS$3:$AU$3),$U$11:$W$13)) -> -0.2688769067 | AZ3: 0.2491384298 | BA3: 0.929665615 | BB3: =$B$30*(AJ4+0.5*AY3) -> -0.5134438453 | BC3: =$B$30*(AK4+0.5*AZ3) -> 0.01245692149 | BD3: =$B$30*(AL4+0.5*BA3) -> 0.04648328075 | BE3: =$B$30*(MMULT($AD$4:$AF$4,$U$3:$W$5)-MMULT(($AM$4:$AO$4)+0.5*($AV$3:$AX$3),$U$7:$W$9)-MMULT(($AJ$4:$AL$4)+0.5*($AY$3:$BA$3),$U$11:$W$13)) -> -0.2688956601 | BF3: 0.2493737607 | BG3: 0.9293575102 | BH3: =$B$30*(AJ4+BE3) -> -0.526889566 | BI3: =$B$30*(AK4+BF3) -> 0.02493737607 | BJ3: =$B$30*(AL4+BG3) -> 0.09293575102 | BK3: =$B$30*(MMULT($AG$4:$AI$4,$U$3:$W$5)-MMULT(($AM$4:$AO$4+$BB$3:$BD$3),$U$7:$W$9)-MMULT(($AJ$4:$AL$4+$BE$3:$BG$3),$U$11:$W$13)) -> -0.2609949899 | BL3: 0.2462498891 | BM3: 0.9844841604 | BN3: =(AP3+2*AV3+2*BB3+BH3)/6 -> -0.5135726827 | BO3: 0.01246128643 | BP3: 0.04551644726 | BQ3: -0.2688547529 | BR3: 0.2487398776 | BS3: 0.9290823535 | BU3: 0 | BV3: =($Q$15*SIN($E$20*BU3)+$Q$7*COS($E$20*BU3))*$N$3+($Q$16*SIN($E$21*BU3)+$Q$8*COS($E$21*BU3))*$O$3+($Q$17*SIN($E$22*BU3)+$Q$9*COS($E$22*BU3))*$P$3 -> -24.09833434 | BW3: =($Q$15*SIN($E$20*BU3)+$Q$7*COS($E$20*BU3))*$N$4+($Q$16*SIN($E$21*BU3)+$Q$8*COS($E$21*BU3))*$O$4+($Q$17*SIN($E$22*BU3)+$Q$9*COS($E$22*BU3))*$P$4 -> 26.46211501 | BX3: =($Q$15*SIN($E$20*BU3)+$Q$7*COS($E$20*BU3))*$N$5+($Q$16*SIN($E$21*BU3)+$Q$8*COS($E$21*BU3))*$O$5+($Q$17*SIN($E$22*BU3)+$Q$9*COS($E$22*BU3))*$P$5 -> 30.32014305 | BY3: =$M$29*SIN($B$15*BU3+$B$16) -> 14.09833434 | BZ3: =$M$30*SIN($B$18*BU3+$B$19) -> -11.46211501 | CA3: =$M$31*SIN($B$21*BU3+$B$22) -> -35.32014305 | CB3: =IF(B45=1,M40*SIN(B15*BU3+B16),BV3+BY3) -> -10 | CC3: =IF(B45=1,M41*SIN(B15*BU3+B19),BW3+BZ3) -> 15 | CD3: =IF(B45=1,M42*SIN(B15*BU3+B22),BX3+CA3) -> -5 | CE3: t0 | CF3: 0 | CG3: =$B$14*SIN($B$15*$CF3+$B$16) -> -16.8294197 | CH3: =$B$17*SIN($B$18*$CF3+$B$19) -> 9.974949866 | CI3: =$B$20*SIN($B$21*$CF3+$B$22) -> 16.9392742 | CJ3: =$B$14*SIN($B$15*($CF3+$B$30/2)+$B$16) -> -16.55403776 | CK3: =$B$17*SIN($B$18*($CF3+$B$30/2)+$B$19) -> 9.99573603 | CL3: =$B$20*SIN($B$21*($CF3+$B$30/2)+$B$22) -> 18.15559217 | CM3: =$B$14*SIN($B$15*($CF3+$B$30)+$B$16) -> -16.2683101 | CN3: =$B$17*SIN($B$18*($CF3+$B$30)+$B$19) -> 9.916648105 | CO3: =$B$20*SIN($B$21*($CF3+$B$30)+$B$22) -> 19.32653062 | CP3: =B26 -> -5 | CQ3: =B27 -> 0 | CR3: =B28 -> 0 | CS3: =B23 -> -10 | CT3: =B24 -> 15 | CU3: =B25 -> -5
A4: m3= | B4: =HOME!I4 -> 2 | E4: 0 | F4: 0 | G4: =B4 -> 2 | I4: 0 | J4: -0.025 | K4: 0.02021116163 | M4: q2 | N4: =(-$I$2/$I$3)*N3 -> 2.901395204 | O4: =(-$I$6/$I$7)*O3 -> 0.07553262829 | P4: =(-$I$10/$I$11)*P3 -> -2.851927832 | Q4: =B24-IF($O$21="f",J21,0) -> 26.46211501 | T4: M-1 | U4: 0 | V4: 0.3333333333 | W4: 0 | Y4: t0 | Z4: 0 | AA4: -16.8294197 | AB4: 9.974949866 | AC4: 16.9392742 | AD4: -16.55403776 | AE4: 9.99573603 | AF4: 18.15559217 | AG4: -16.2683101 | AH4: 9.916648105 | AI4: 19.32653062 | AJ4: -5 | AK4: 0 | AL4: 0 | AM4: -10 | AN4: 15 | AO4: -5 | CE4: t1 | CF4: =CF3+$B$30 -> 0.1 | CG4: =$B$14*SIN($B$15*$CF4+$B$16) -> -16.2683101 | CH4: =$B$17*SIN($B$18*$CF4+$B$19) -> 9.916648105 | CI4: =$B$20*SIN($B$21*$CF4+$B$22) -> 19.32653062 | CJ4: =$B$14*SIN($B$15*($CF4+$B$30/2)+$B$16) -> -15.97241526 | CK4: =$B$17*SIN($B$18*($CF4+$B$30/2)+$B$19) -> 9.738476309 | CL4: =$B$20*SIN($B$21*($CF4+$B$30/2)+$B$22) -> 20.4491628 | CM4: =$B$14*SIN($B$15*($CF4+$B$30)+$B$16) -> -15.66653819 | CN4: =$B$17*SIN($B$18*($CF4+$B$30)+$B$19) -> 9.463000877 | CO4: =$B$20*SIN($B$21*($CF4+$B$30)+$B$22) -> 21.52068273 | CP4: =$CP3+$DW4 -> -5.268854753 | CQ4: =$CQ3+$DX4 -> 0.2487398776 | CR4: =$CR3+$DY4 -> 0.9290823535 | CS4: =$CS3+$DT4 -> -10.51357268 | CT4: =$CT3+$DU4 -> 15.01246129 | CU4: =$CU3+$DV4 -> -4.954483553 | CV4: =$B$30*$CP3 -> -0.5 | CW4: =$B$30*$CQ3 -> 0 | CX4: =$B$30*$CR3 -> 0 | CY4: =$B$30*(MMULT($CG3:$CI3,$U$3:$W$5)-MMULT($CS3:$CU3,$U$7:$W$9)-MMULT($CP3:$CR3,$U$11:$W$13)) -> -0.2765883939 | CZ4: 0.2491649955 | DA4: 0.8719637101 | DB4: =$B$30*($CP3+$CY4/2) -> -0.5138294197 | DC4: =$B$30*(CQ3+CZ4/2) -> 0.01245824978 | DD4: =$B$30*(CR3+DA4/2) -> 0.0435981855 | DE4: =$B$30*(MMULT($CJ3:$CL3,$U$3:$W$5)-MMULT(($CS3:$CU3)+0.5*($CV4:$CX4),$U$7:$W$9)-MMULT(($CP3:$CR3)+0.5*($CY4:$DA4),$U$11:$W$13)) -> -0.2688769067 | DF4: 0.2491384298 | DG4: 0.929665615 | DH4: =$B$30*(CP3+0.5*DE4) -> -0.5134438453 | DI4: =$B$30*(CQ3+0.5*DF4) -> 0.01245692149 | DJ4: =$B$30*(CR3+0.5*DG4) -> 0.04648328075 | DK4: =$B$30*(MMULT($CJ3:$CL3,$U$3:$W$5)-MMULT(($CS3:$CU3)+0.5*($DB4:$DD4),$U$7:$W$9)-MMULT(($CP3:$CR3)+0.5*($DE4:$DG4),$U$11:$W$13)) -> -0.2688956601 | DL4: 0.2493737607 | DM4: 0.9293575102 | DN4: =$B$30*(CP3+DK4) -> -0.526889566 | DO4: =$B$30*(CQ3+DL4) -> 0.02493737607 | DP4: =$B$30*(CR3+DM4) -> 0.09293575102 | DQ4: =$B$30*(MMULT($CM3:$CO3,$U$3:$W$5)-MMULT(($CS3:$CU3+$DH4:$DJ4),$U$7:$W$9)-MMULT(($CP3:$CR3+$DK4:$DM4),$U$11:$W$13)) -> -0.2609949899 | DR4: 0.2462498891 | DS4: 0.9844841604 | DT4: =(CV4+2*DB4+2*DH4+DN4)/6 -> -0.5135726827 | DU4: 0.01246128643 | DV4: 0.04551644726 | DW4: -0.2688547529 | DX4: 0.2487398776 | DY4: 0.9290823535
A5: k1= | B5: =HOME!E5 -> 0.1 | M5: q3 | N5: =((-($J$2-($I$2*$J$3)/$J$2))/$K$3)*N3 -> 3.588852606 | O5: =((-($J$6-($I$6*$J$7)/$J$6))/$K$7)*O3 -> -0.7881975992 | P5: =((-($J$10-($I$10*$J$11)/$J$10))/$K$11)*P3 -> 2.761844993 | Q5: 30.32014305 | U5: 0 | V5: 0 | W5: 0.5
A6: k2= | B6: =HOME!G5 -> 0.3 | E6: =B5+B6 -> 0.4 | F6: =-B6 -> -0.3 | G6: 0 | I6: =E10-E2*$E$21^2 -> 0.001510652566 | J6: =F10-F2*$E$21^2 -> -0.02 | K6: 0 | M6: peremfeltételek
A7: k3= | B7: =HOME!I5 -> 0.2 | D7: K= | E7: =-B6 -> -0.3 | F7: =B6+B7 -> 0.5 | G7: =-B7 -> -0.2 | I7: =E11-E3*$E$21^2 -> -0.02 | J7: =F11-F3*$E$21^2 -> 0.00390639154 | K7: =G11-G3*$E$21^2 -> -0.025 | N7: =MINVERSE(N3:P5) -> 0.08926338497 | O7: 0.1553930142 | P7: 0.1281412527 | Q7: =MMULT(N7:P9,Q3:Q5) -> 5.846190032 | R7: b1 | U7: =MMULT(E10:G12,U3:W5) -> 0.014 | V7: -0.006666666667 | W7: 0
A8: c1= | B8: =HOME!E6 -> 20 | E8: 0 | F8: =-B7 -> -0.2 | G8: =B7 -> 0.2 | I8: 0 | J8: -0.025 | K8: -0.002395738974 | N8: 0.79876971 | O8: 0.03619990536 | P8: -0.2518353471 | Q8: -25.92677722 | R8: b2 | T8: CM-1 | U8: -0.004 | V8: 0.015 | W8: -0.0125
A9: c2= | B9: =HOME!G6 -> 50 | N9: 0.111966905 | O9: -0.1915929196 | P9: 0.1236940944 | Q9: -4.017747149 | R9: b3 | U9: 0 | V9: -0.008333333333 | W9: 0.0125
A10: c3= | B10: =HOME!I6 -> 40 | E10: =B11+B12 -> 0.07 | F10: =-B12 -> -0.02 | G10: 0 | I10: =E10-E2*$E$22^2 -> -0.05703855664 | J10: =F10-F2*$E$22^2 -> -0.02 | K10: 0
A11: s1 | B11: =1/B8 -> 0.05 | D11: C= | E11: =-B12 -> -0.02 | F11: =B12+B13 -> 0.045 | G11: =-B13 -> -0.025 | I11: =E11-E3*$E$22^2 -> -0.02 | J11: =F11-F3*$E$22^2 -> -0.03122313399 | K11: =G11-G3*$E$22^2 -> -0.025 | N11: =N3*$E$20 -> 0.04893280275 | O11: =O3*$E$21 -> 0.1170378977 | P11: =P3*$E$22 -> 0.1593979653 | Q11: =B26-IF($O$21="f",K20,0) -> -0.4737818121 | U11: =MMULT(E6:G8,U3:W5) -> 0.08 | V11: -0.1 | W11: 0
A12: s2 | B12: =1/B9 -> 0.02 | E12: 0 | F12: =-B13 -> -0.025 | G12: =B13 -> 0.025 | I12: 0 | J12: -0.025 | K12: -0.02581542266 | N12: =N4*$E$20 -> 0.1419733992 | O12: =O4*$E$21 -> 0.00884018002 | P12: =P4*$E$22 -> -0.4545914935 | Q12: =B27-IF($O$21="f",K21,0) -> 1.625668202 | T12: KM-1 | U12: -0.06 | V12: 0.1666666667 | W12: -0.1
A13: s3 | B13: 0.025 | N13: 0.1756126167 | O13: -0.09224898994 | P13: 0.4402324722 | Q13: 51.62730995 | U13: 0 | V13: -0.06666666667 | W13: 0.1
A14: F1= | B14: =HOME!E7 -> 20 | D14: 3-madfokú egyenlet:
A15: ω1= | B15: =HOME!E8 -> 0.5 | D15: a | E15: =-E2*F3*G4 -> -30 | N15: =MINVERSE(N11:P13) -> 1.824203397 | O15: 3.175640991 | P15: 2.618718846 | Q15: =MMULT(N15:P17,Q11:Q13) -> 139.4956737 | R15: a1
A16: ε1= | B16: =HOME!E9 -> -1 | D16: b | E16: =E10*F3*G4+E2*(F11*G4+G12*F3) -> 1.245 | N16: 6.824880881 | O16: 0.3093007144 | P16: -2.15174189 | Q16: -113.8193296 | R16: a2
A17: F2= | B17: =HOME!G7 -> 10 | D17: c | E17: =-E10*(F11*G4+G12*F3)-E2*(F11*G12-G11^2)+F10^2*G4 -> -0.01325 | N17: 0.7024362251 | O17: -1.201978452 | P17: 0.7760079884 | Q17: 37.77638528 | R17: a3
A18: ω2= | B18: =HOME!G8 -> 2 | D18: d | E18: =E10*(F11*G12-G11^2)-(F10^2)*G12 -> 2.5e-05
A19: ε2= | B19: =HOME!G9 -> 1.5 | D19: sajátfrekik: | I19: pf-hez | J19: x0 | K19: v0
A20: F3= | B20: =HOME!I7 -> 30 | D20: α1= | E20: =(SMALL(CARDANO!B9:B11,1))^0.5 -> 0.04893280275 | I20: q1 | J20: =M29*(SIN(B16)) -> 14.09833434 | K20: =M29*B15*COS(B16) -> -4.526218188 | N20: konstansok:
A21: ω3= | B21: =HOME!I8 -> 1 | D21: α2= | E21: =(SMALL(CARDANO!B9:B11,2))^0.5 -> 0.1170378977 | I21: q2 | J21: =M30*(SIN(B19)) -> -11.46211501 | K21: =M30*B18*COS(B19) -> -1.625668202 | N21: h vagy f: | O21: f
A22: ε3= | B22: =HOME!I9 -> 0.6 | D22: α3= | E22: =(SMALL(CARDANO!B9:B11,3))^0.5 -> 0.1593979653 | I22: q3 | J22: =M31*(SIN(B22)) -> -35.32014305 | K22: =M31*B21*COS(B22) -> -51.62730995
A23: X1= | B23: =HOME!E10 -> -10
A24: X2= | B24: =HOME!G10 -> 15 | D24: partikuláris megoldás:
A25: X3= | B25: =HOME!I10 -> -5 | E25: =B15 -> 0.5 | F25: 0 | G25: 0 | J25: =(E10:G12-MMULT((E25:G27)^2,E2:G4)) -> -1.18 | K25: -0.02 | L25: 0 | M25: =B14 -> 20 | N25: F1
A26: V1= | B26: =HOME!E11 -> -5 | D26: ω= | E26: 0 | F26: =B15 -> 0.5 | G26: 0 | I26: C-ω^2M | J26: -0.02 | K26: -0.705 | L26: -0.025 | M26: =B17 -> 10 | N26: F2
A27: V2= | B27: =HOME!G11 -> 0 | E27: 0 | F27: 0 | G27: =B15 -> 0.5 | J27: 0 | K27: -0.025 | L27: -0.475 | M27: =B20 -> 30 | N27: F3
A28: V3= | B28: =HOME!I11 -> 0
A29: t0 | B29: 0 | J29: =MINVERSE(J25:L27) -> -0.8478660663 | K29: 0.02409791363 | L29: -0.001268311244 | M29: =MMULT(J29:L31,M25:M27) -> -16.75439153 | N29: qp1
A30: dt | B30: =HOME!U5 -> 0.1 | J30: 0.02409791363 | K30: -1.421776904 | L30: 0.07483036337 | M30: -11.49089987 | N30: qp2
J31: -0.001268311244 | K31: 0.07483036337 | L31: -2.109201598 | M31: -62.55311053 | N31: qp3
A32: F1 | B32: =HOME!AI1 -> 0 | C32: =HOME!AJ1-30000 -> 0
A33: F2 | B33: =HOME!AI2 -> 0 | C33: =HOME!AJ2-30000 -> 0
A34: F3 | B34: =HOME!AI3 -> 0 | C34: =HOME!AJ3-30000 -> 0 | J34: F_pre | K34: F_man
A35: allgrabbed | B35: 0 | J35: =M25:M27 -> 20 | K35: =C32 -> 0
A36: x1 | B36: 0 | C36: =HOME!AK5-30000 -> 7.077097822 | E36: 7.077097822 | J36: 10 | K36: =C33 -> 0
A37: x2 | B37: 0 | C37: =HOME!AK6-30000 -> 13 | E37: 20.53890519 | J37: 30 | K37: 0
A38: x3 | B38: 0 | C38: =HOME!AK7-30000 -> 36.5966941 | E38: 36.5966941
I39: STATIC CASE
A40: plot rk | B40: 0 | J40: =MINVERSE(E10:G12) -> 20 | K40: 20 | L40: 20 | M40: =MMULT(J40:L42,J35:J37) -> 1200
A41: plot an | B41: 0 | I41: C-1 | J41: 20 | K41: 70 | L41: 70 | M41: 3200
A42: plot inf | B42: 1 | J42: 20 | K42: 70 | L42: 110 | M42: 4400
A43: plot until | B43: 100
L44: man | M44: =MMULT(J40:L42,K35:K37) -> 0
A45: STATIC | B45: =IF(HOME!AJ43="STATIC",1,0) -> 0 | M45: 0
M46: 0
A48: GUYAN | B48: =HOME!AJ50 -> 0
J51: 1 | K51: 0 | L51: 0 | M51: 0
J52: 1 | K52: 1 | L52: 1 | M52: 1
J53: 2 | K53: 0 | L53: 0 | M53: 0
J54: 2 | K54: =N4 -> 2.901395204 | L54: =O4 -> 0.07553262829 | M54: =P4 -> -2.851927832
J55: 3 | K55: 0 | L55: 0 | M55: 0
J56: 3 | K56: =N5 -> 3.588852606 | L56: =O5 -> -0.7881975992 | M56: =P5 -> 2.761844993
J58: 0 | K58: 0 | L58: 0 | M58: 0
J59: 1 | K59: =N3 -> 1 | L59: =O3 -> 1 | M59: 1
J60: 2 | K60: =N4 -> 2.901395204 | L60: 0.07553262829 | M60: -2.851927832
J61: 3 | K61: 3.588852606 | L61: -0.7881975992 | M61: 2.761844993

Sheet 2DOF
A1: 1 | B1: 2 | C1: 3 | D1: 4 | E1: 5 | F1: 6 | G1: 7 | H1: 8 | I1: 9 | J1: 10 | K1: 11 | L1: 12 | M1: 13 | N1: 14 | O1: 15 | P1: 16 | Q1: 17 | R1: 18 | S1: 19 | T1: 20 | U1: 21 | V1: 22 | W1: 23 | X1: 24 | Y1: 25 | Z1: 26 | AA1: 27 | AB1: 28 | AC1: 29 | AD1: 30 | AE1: 31 | AF1: 32 | AG1: 33 | AH1: 34 | AI1: 35 | AJ1: 36 | AL1: 37 | AM1: 38 | AN1: 39 | AO1: 40 | AP1: 41 | AQ1: 42 | AR1: 43 | AS1: 44 | AT1: 45 | AU1: 46 | AV1: 47 | AW1: 48 | AX1: 49 | AY1: 50 | AZ1: 51 | BA1: 52 | BB1: 53 | BC1: 54 | BD1: 55 | BE1: 56
D2: INPUT: | E2: =IF(HOME!AJ46="1 and 2",1,IF(HOME!AJ46="1 and 3",2,3)) -> 3 | Y2: 4 | Z2: 0.01 | AA2: F(t) | AC2: F(t+dt/2) | AE2: F(t+dt) | AG2: v(t) | AI2: q(t) | AK2: qs | AL2: dq1 | AN2: dv1 | AP2: dq2 | AR2: dv2 | AT2: dq3 | AV2: dv3 | AX2: dq4 | AZ2: dv4 | BB2: dq | BD2: dv
H3: 2-odfokú egyenlet: | M3: sajátvektorok: | Q3: t | R3: qh1 | S3: qh2 | T3: qp1 | U3: qp2 | V3: q1 | W3: q2 | Y3: t1 | Z3: =$Z$4+$B$23 -> 0.1 | AA3: =$E$13*SIN($E$16*Z3+$E$17) -> 15.58330416 | AB3: =$E$14*SIN($E$18*Z3+$E$19) -> 19.32653062 | AC3: =$E$13*SIN($E$16*(Z3+$Z$2/2)+$E$17) -> 15.56227835 | AD3: =$E$14*SIN($E$18*(Z3+$Z$2/2)+$E$19) -> 19.44101489 | AE3: =$E$13*SIN($E$16*(Z3+$Z$2)+$E$17) -> 15.53969632 | AF3: =$E$14*SIN($E$18*(Z3+$Z$2)+$E$19) -> 19.55501313 | AG3: =AG4+BD3 -> 0.01097941415 | AH3: =AH4+BE3 -> 0.01248456014 | AI3: =IF(AND(B40=1,B27=1),I39,IF(AND(B40=1,B27=0),I36*SIN(E16*Q4+E17),AI4+BB3)) -> 0.0003662532731 | AJ3: =IF(AND(B40=1,B27=1),I39,IF(AND(B40=1,B27=0),I36*SIN(E16*Q4+E17),AJ4+BC3)) -> 0.0004163683787 | AL3: =$B$23*$AG$4 -> 0 | AM3: =$B$23*$AH$4 -> 0 | AN3: =$B$23*(MMULT(AA4:AB4,M19:N20)-MMULT(AI4:AJ4,M22:N23)-MMULT(AG4:AH4,M25:N26)) -> 0 | AO3: 0 | AP3: =$B$23*(AG4+0.5*AN3) -> 0 | AQ3: =$B$23*(AH4+0.5*AO3) -> 0 | AR3: =$B$23*(MMULT(AC4:AD4,M19:N20)-MMULT((AI4:AJ4)+0.5*(AL3:AM3),M22:N23)-MMULT((AG4:AH4)+0.5*(AN3:AO3),M25:N26)) -> 0.01099841 | AS3: 0.01249479232 | AT3: =$B$23*(AG4+0.5*AR3) -> 0.0005499205002 | AU3: =$B$23*(AH4+0.5*AS3) -> 0.0006247396159 | AV3: =$B$23*(MMULT(AC4:AD4,M19:N20)-MMULT((AI4:AJ4)+0.5*(AP3:AQ3),M22:N23)-MMULT((AG4:AH4)+0.5*(AR3:AS3),M25:N26)) -> 0.01097678638 | AW3: 0.01248731041 | AX3: =$B$23*(AG4+AV3) -> 0.001097678638 | AY3: =$B$23*(AH4+AW3) -> 0.001248731041 | AZ3: =$B$23*(MMULT(AE4:AF4,M19:N20)-MMULT((AI4:AJ4)+(AT3:AU3),M22:N23)-MMULT((AG4:AH4)+(AV3:AW3),M25:N26)) -> 0.02192609213 | BA3: 0.0249431554 | BB3: =(AL3+2*AP3+2*AT3+AX3)/6 -> 0.0003662532731 | BC3: =(AM3+2*AQ3+2*AU3+AY3)/6 -> 0.0004163683787 | BD3: =(AN3+2*AR3+2*AV3+AZ3)/6 -> 0.01097941415 | BE3: 0.01248456014
A4: m1= | B4: 1 | D4: M= | E4: =IF($E$2=1,GUYAN!F66,IF($E$2=2,GUYAN!I66,IF($E$2=3,GUYAN!L66))) -> 3.408163265 | F4: =IF($E$2=1,GUYAN!G66,IF($E$2=2,GUYAN!J66,IF($E$2=3,GUYAN!M66))) -> 0 | H4: a | I4: =E4*F5-E5*F4 -> 6.816326531 | M4: α1 | N4: α2 | Q4: 0 | R4: =($O$14*SIN($I$11*Q4)+$O$8*COS($I$11*Q4))*$M$5+($O$15*SIN($I$12*Q4)+$O$9*COS($O$15*Q4))*$N$5 -> 16.14623569 | S4: =(O14*SIN($I$11*Q4)+$O$8*COS($I$11*Q4))*$M$6+($O$15*SIN($I$12*Q4)+$O$9*COS($I$12*Q4))*$N$6 -> -1.251260977 | T4: =$J$28*SIN($E$16*Q4+$E$17) -> -1.146235686 | U4: =$J$29*SIN($E$16*Q4+$E$17) -> -3.748739023 | V4: =IF(B40=1,I36*SIN(E16*Q4+E17),R4+T4) -> 15 | W4: =IF(B40=1,I37*SIN(E16*Q4+E17),S4+U4) -> -5 | Y4: t0 | Z4: 0 | AA4: 0 | AB4: 0 | AC4: 0.3748437695 | AD4: 0.2498958464 | AE4: 0.7487506249 | AF4: 0.4991670832 | AG4: 0 | AH4: 0 | AI4: 0 | AJ4: 0
A5: m2= | B5: 1 | E5: =IF($E$2=1,GUYAN!F67,IF($E$2=2,GUYAN!I67,IF($E$2=3,GUYAN!L67))) -> 0 | F5: =IF($E$2=1,GUYAN!G67,IF($E$2=2,GUYAN!J67,IF($E$2=3,GUYAN!M67))) -> 2 | H5: b | I5: =-E7*F5-E4*F8+E8*F4+F7*E5 -> -0.1637755102 | L5: q1 | M5: 1 | N5: 1 | O5: =E22-E30 -> 16.14623569
A6: k1= | B6: 1 | H6: c | I6: =E7*F8-E8*F7 -> 0.0003571428571 | L6: q2 | M6: =-H16/I16 -> 1.240762159 | N6: =-H20/I20 -> -1.37341522 | O6: =E23-E31 -> -1.251260977
A7: k2= | B7: 1 | D7: C= | E7: =IF($E$2=1,GUYAN!F69,IF($E$2=2,GUYAN!I69,IF($E$2=3,GUYAN!L69))) -> 0.03928571429 | F7: =IF($E$2=1,GUYAN!G69,IF($E$2=2,GUYAN!J69,IF($E$2=3,GUYAN!M69))) -> -0.025
A8: c1= | B8: 1 | E8: =IF($E$2=1,GUYAN!F70,IF($E$2=2,GUYAN!I70,IF($E$2=3,GUYAN!L70))) -> -0.025 | F8: =IF($E$2=1,GUYAN!G70,IF($E$2=2,GUYAN!J70,IF($E$2=3,GUYAN!M70))) -> 0.025 | H8: α1^2= | I8: =(-I5+(I5^2-4*I4*I6)^0.5)/(2*I4) -> 0.02160139907 | J8: =I8^0.5 -> 0.1469741442 | M8: =MINVERSE(M5:N6) -> 0.5253718555 | N8: 0.3825295132 | O8: =MMULT(M8:N9,O5:O6) -> 8.004133548 | P8: b1
A9: c2= | B9: 1 | H9: α2^2= | I9: =(-I5-(I5^2-4*I4*I6)^0.5)/(2*I4) -> 0.002425547041 | J9: =I9^0.5 -> 0.04924984305 | M9: 0.4746281445 | N9: -0.3825295132 | O9: 8.142102137 | P9: b2
A10: s1 | B10: =1/B8 -> 1 | D10: K= | E10: =IF($E$2=1,GUYAN!F72,IF($E$2=2,GUYAN!I72,IF($E$2=3,GUYAN!L72))) -> 0.3612244898 | F10: =IF($E$2=1,GUYAN!G72,IF($E$2=2,GUYAN!J72,IF($E$2=3,GUYAN!M72))) -> -0.2 | H10: sajátfrekik:
A11: s2 | B11: =1/B9 -> 1 | E11: =IF($E$2=1,GUYAN!F73,IF($E$2=2,GUYAN!I73,IF($E$2=3,GUYAN!L73))) -> -0.2 | F11: =IF($E$2=1,GUYAN!G73,IF($E$2=2,GUYAN!J73,IF($E$2=3,GUYAN!M73))) -> 0.2 | H11: α1= | I11: =SMALL(J8:J9,1) -> 0.04924984305 | M11: =$I$11*M5 -> 0.04924984305 | N11: =$I$12*N5 -> 0.1469741442 | O11: =E25-F30 -> 0.1625702504
A12: F1= | H12: α2= | I12: =SMALL(J8:J9,2) -> 0.1469741442 | M12: =$I$11*M6 -> 0.06110734157 | N12: =$I$12*N6 -> -0.2018565266 | O12: =E26-F31 -> 0.5316824883
A13: ω1= | D13: F= | E13: =IF($E$2=1,GUYAN!F75,IF($E$2=2,GUYAN!I75,IF($E$2=3,GUYAN!L75))) -> 15.71428571
A14: ε1= | E14: =IF($E$2=1,GUYAN!F76,IF($E$2=2,GUYAN!I76,IF($E$2=3,GUYAN!L76))) -> 30 | H14: sajátértékfeladat: | M14: =MINVERSE(M11:N12) -> 10.66748284 | N14: 7.767121467 | O14: =MMULT(M14:N15,O11:O12) -> 5.863857824 | P14: a1
A15: F2= | M15: 3.229330894 | N15: -2.602699375 | O15: -0.8588165476 | P15: a2
A16: ω2= | D16: ω1= | E16: =IF($E$2=1,GUYAN!F94,IF('2DOF'!$E$2=2,GUYAN!I94,GUYAN!L94)) -> 2 | H16: =E7-I11^2*E4 -> 0.03101905396 | I16: =F7-I11^2*F4 -> -0.025
A17: ε2= | D17: ε1= | E17: =IF($E$2=1,GUYAN!F95,IF('2DOF'!$E$2=2,GUYAN!I95,GUYAN!L95)) -> 1.5 | H17: =E8-I11^2*E5 -> -0.025 | I17: =F8-I11^2*F5 -> 0.02014890592
A18: X1= | D18: ω2= | E18: =IF($E$2=1,GUYAN!F96,IF('2DOF'!$E$2=2,GUYAN!I96,GUYAN!L96)) -> 1 | H18: =H16/H17 -> -1.240762159 | I18: =I16/I17 -> -1.240762159
A19: X2= | D19: ε2= | E19: =IF($E$2=1,GUYAN!F97,IF('2DOF'!$E$2=2,GUYAN!I97,GUYAN!L97)) -> 0.6 | L19: M-1 | M19: =MINVERSE(E4:F5) -> 0.2934131737 | N19: 0
A20: V1= | H20: =E7-I12^2*E4 -> -0.03433538049 | I20: =F7-I12^2*F4 -> -0.025 | M20: 0 | N20: 0.5
A21: V2= | H21: =E8-I12^2*E5 -> -0.025 | I21: =F8-I12^2*F5 -> -0.01820279813
A22: t0 | B22: 0 | D22: pf: x | E22: =IF($E$2=1,GUYAN!F79,IF($E$2=2,GUYAN!I79,GUYAN!L79)) -> 15 | H22: =H20/H21 -> 1.37341522 | I22: =I20/I21 -> 1.37341522 | L22: CM-1 | M22: =MMULT(E7:F8,M19:N20) -> 0.01152694611 | N22: -0.0125
A23: dt | B23: =HOME!$U$5 -> 0.1 | D23: x | E23: =IF($E$2=1,GUYAN!F80,IF($E$2=2,GUYAN!I80,GUYAN!L80)) -> -5 | M23: -0.007335329341 | N23: 0.0125
J24: F
D25: v | E25: =IF($E$2=1,GUYAN!F82,IF($E$2=2,GUYAN!I82,GUYAN!L82)) -> 0 | G25: A= | H25: =E7-$E$16^2*E4 -> -13.59336735 | I25: =F7-$E$16^2*F4 -> -0.025 | J25: =E13 -> 15.71428571 | L25: KM-1 | M25: =MMULT(E10:F11,M19:N20) -> 0.105988024 | N25: -0.1
D26: v | E26: =IF($E$2=1,GUYAN!F83,IF($E$2=2,GUYAN!I83,GUYAN!L83)) -> 0 | H26: =E8-$E$16^2*E5 -> -0.025 | I26: =F8-$E$16^2*F5 -> -7.975 | J26: =E14 -> 30 | M26: -0.05868263473 | N26: 0.1
A27: F1 | B27: =IF($E$2=1,GUYAN!F86,IF('2DOF'!$E$2=2,GUYAN!I86,GUYAN!L86)) -> 0 | C27: =IF($E$2=1,GUYAN!G86,IF('2DOF'!$E$2=2,GUYAN!J86,GUYAN!M86)) -> 0
A28: F2 | B28: =IF($E$2=1,GUYAN!F87,IF('2DOF'!$E$2=2,GUYAN!I87,GUYAN!L87)) -> 0 | C28: =IF($E$2=1,GUYAN!G87,IF('2DOF'!$E$2=2,GUYAN!J87,GUYAN!M87)) -> 0 | H28: =MINVERSE(H25:I26) -> -0.07356571332 | I28: 0.0002306135214 | J28: =MMULT(H28:I29,J25:J26) -> -1.149114232 | K28: qp1
D29: pfhez | E29: x0 | F29: v0 | H29: 0.0002306135214 | I29: -0.1253925725 | J29: -3.758153247 | K29: qp2
A30: allgrabbed | D30: q1 | E30: =J28*SIN($E$17) -> -1.146235686 | F30: =J28*$E$16*COS($E$17) -> -0.1625702504
A31: x1 | D31: q2 | E31: =J29*SIN($E$17) -> -3.748739023 | F31: =J29*$E$16*COS($E$17) -> -0.5316824883 | H31: F_pre | I31: F_man
A32: x2 | H32: =J25 -> 15.71428571 | I32: =C27 -> 0
H33: =J26 -> 30 | I33: =C28 -> 0
G34: STATIC CASE
A35: plot rk | B35: =CALC!B40 -> 0
A36: plot an | B36: =CALC!B41 -> 0 | F36: C-1 | G36: =MINVERSE(E7:F8) -> 70 | H36: 70 | I36: =MMULT(G36:H37,H32:H33) -> 3200
A37: plot inf | B37: =CALC!B42 -> 1 | G37: 70 | H37: 110 | I37: 4400
A38: plot until | B38: =CALC!B43 -> 100
H39: man | I39: =MMULT(G36:H37,I32:I33) -> 0
A40: STATIC | B40: =CALC!B45 -> 0 | I40: 0

Sheet ANIMATION
A1: X1 | B1: =IF(CALC!C1=1,CALC!AM4,CALC!CB3) -> -10 | I1: =HOME!O5 -> 10 | N1: =HOME!P5 -> 10 | S1: =HOME!Q5 -> 10
A2: X2 | B2: =IF(CALC!C1=1,CALC!AN4,CALC!CC3) -> 15 | F2: spring1 | G2: =HOME!O6 -> 0.2 | H2: VIRSPRI | I2: =I1*360 -> 3600 | J2: =HOME!O7 -> 2 | K2: spring2 | L2: =HOME!P6 -> 0.2 | M2: VIRSPRI | N2: =N1*360 -> 3600 | O2: =HOME!P7 -> 2 | P2: spring3 | Q2: =HOME!Q6 -> 0.2 | R2: VIRSPRI | S2: =S1*360 -> 3600 | T2: =HOME!Q7 -> 2
A3: X3 | B3: =IF(CALC!C1=1,CALC!AO4,CALC!CD3) -> -5 | F3: 0 | G3: 0 | H3: =-1+COS(F3*PI()/180)+G3 -> 0 | I3: =(F3/$I$2)*($D$8-$D$7)+COS(F3*PI()/180)+$D$7-1 -> 5 | J3: =$J$2*SIN(F3*PI()/180)+$B$18 -> 4.5 | K3: 0 | L3: 0 | M3: =-1+COS(K3*PI()/180)+L3 -> 0 | N3: =(K3/$N$2)*($D$13-$D$12)+COS(K3*PI()/180)+$D$12-1 -> 49 | O3: =$O$2*SIN(K3*PI()/180)+$B$19 -> 4.5 | P3: 0 | Q3: 0 | R3: =-1+COS(P3*PI()/180)+Q3 -> 0 | S3: =(P3/$S$2)*($D$18-$D$17)+COS(P3*PI()/180)+$D$17-1 -> 128 | T3: =$T$2*SIN(P3*PI()/180)+$B$20 -> 4.5
A4: origo | B4: =HOME!AC35 -> 0 | F4: =IF(F3<$I$2,F3+30,NA()) -> 30 | G4: =G3+$G$2 -> 0.2 | H4: =-1+COS(F4*PI()/180)+G4 -> 0.06602540378 | I4: =(F4/$I$2)*($D$8-$D$7)+COS(F4*PI()/180)+$D$7-1 -> 4.98269207 | J4: =$J$2*SIN(F4*PI()/180)+$B$18 -> 5.5 | K4: =IF(K3<$N$2,K3+30,NA()) -> 30 | L4: =L3+$L$2 -> 0.2 | M4: =-1+COS(K4*PI()/180)+L4 -> 0.06602540378 | N4: =(K4/$N$2)*($D$13-$D$12)+COS(K4*PI()/180)+$D$12-1 -> 49.27435874 | O4: =$O$2*SIN(K4*PI()/180)+$B$19 -> 5.5 | P4: =IF(P3<$S$2,P3+30,NA()) -> 30 | Q4: =Q3+$G$2 -> 0.2 | R4: =-1+COS(P4*PI()/180)+Q4 -> 0.06602540378 | S4: =(P4/$S$2)*($D$18-$D$17)+COS(P4*PI()/180)+$D$17-1 -> 127.8993587 | T4: =$T$2*SIN(P4*PI()/180)+$B$20 -> 5.5
A5: L1 | B5: =HOME!O3 -> 5 | C5: Xsb1_l | D5: =B4+B5 -> 5 | F5: 60 | G5: 0.4 | H5: -0.1 | I5: 4.733333333 | J5: 6.232050808 | K5: =IF(K4<$N$2,K4+30,NA()) -> 60 | L5: =L4+$L$2 -> 0.4 | M5: -0.1 | N5: 49.31666667 | O5: 6.232050808 | P5: =IF(P4<$S$2,P4+30,NA()) -> 60 | Q5: 0.4 | R5: -0.1 | S5: 127.5666667 | T5: 6.232050808
A6: R1 | B6: =VLOOKUP(I2,F3:H1203,3) -> 24 | C6: Xsb1_r | D6: =B4+B5+B6 -> 29 | F6: 90 | G6: 0.6 | H6: -0.4 | I6: 4.35 | J6: 6.5 | K6: 90 | L6: 0.6 | M6: -0.4 | N6: 49.225 | O6: 6.5 | P6: 90 | Q6: 0.6 | R6: -0.4 | S6: 127.1 | T6: 6.5
A7: L2 | B7: =HOME!O4 -> 5 | C7: X1_l | D7: =D5 -> 5 | F7: 120 | G7: 0.8 | H7: -0.7 | I7: 3.966666667 | J7: 6.232050808 | K7: 120 | L7: 0.8 | M7: -0.7 | N7: 49.13333333 | O7: 6.232050808 | P7: 120 | Q7: 0.8 | R7: -0.7 | S7: 126.6333333 | T7: 6.232050808
A8: K1 | B8: =HOME!O9 -> 20 | C8: X1_r | D8: =B4+B5+B6+B1 -> 19 | F8: 150 | G8: 1 | H8: -0.8660254038 | I8: 3.71730793 | J8: 5.5 | K8: 150 | L8: 1 | M8: -0.8660254038 | N8: 49.17564126 | O8: 5.5 | P8: 150 | Q8: 1 | R8: -0.8660254038 | S8: 126.3006413 | T8: 5.5
A9: L3 | B9: =HOME!P3 -> 5 | F9: 180 | G9: 1.2 | H9: -0.8 | I9: 3.7 | J9: 4.5 | K9: 180 | L9: 1.2 | M9: -0.8 | N9: 49.45 | O9: 4.5 | P9: 180 | Q9: 1.2 | R9: -0.8 | S9: 126.2 | T9: 4.5
A10: R2 | B10: =VLOOKUP(N2,K3:M1203,3) -> 24 | C10: Xsb2_l | D10: =SUM(B4:B9) -> 59 | F10: 210 | G10: 1.4 | H10: -0.4660254038 | I10: 3.950641263 | J10: 3.5 | K10: 210 | L10: 1.4 | M10: -0.4660254038 | N10: 49.99230793 | O10: 3.5 | P10: 210 | Q10: 1.4 | R10: -0.4660254038 | S10: 126.3673079 | T10: 3.5
A11: L4 | B11: =HOME!P4 -> 5 | C11: Xsb2_r | D11: =D10+B10 -> 83 | F11: 240 | G11: 1.6 | H11: 0.1 | I11: 4.433333333 | J11: 2.767949192 | K11: 240 | L11: 1.6 | M11: 0.1 | N11: 50.76666667 | O11: 2.767949192 | P11: 240 | Q11: 1.6 | R11: 0.1 | S11: 126.7666667 | T11: 2.767949192
A12: K2 | B12: =HOME!P9 -> 20 | C12: X2_l | D12: =D10+B1 -> 49 | F12: 270 | G12: 1.8 | H12: 0.8 | I12: 5.05 | J12: 2.5 | K12: 270 | L12: 1.8 | M12: 0.8 | N12: 51.675 | O12: 2.5 | P12: 270 | Q12: 1.8 | R12: 0.8 | S12: 127.3 | T12: 2.5
A13: L5 | B13: =HOME!Q3 -> 5 | C13: X2_r | D13: =D11+B2 -> 98 | F13: 300 | G13: 2 | H13: 1.5 | I13: 5.666666667 | J13: 2.767949192 | K13: 300 | L13: 2 | M13: 1.5 | N13: 52.58333333 | O13: 2.767949192 | P13: 300 | Q13: 2 | R13: 1.5 | S13: 127.8333333 | T13: 2.767949192
A14: R3 | B14: =VLOOKUP(S2,P3:R1203,3) -> 24 | F14: 330 | G14: 2.2 | H14: 2.066025404 | I14: 6.149358737 | J14: 3.5 | K14: 330 | L14: 2.2 | M14: 2.066025404 | N14: 53.35769207 | O14: 3.5 | P14: 330 | Q14: 2.2 | R14: 2.066025404 | S14: 128.2326921 | T14: 3.5
A15: L6 | B15: =HOME!Q4 -> 5 | C15: Xsb3_l | D15: =SUM(B4:B13) -> 113 | F15: 360 | G15: 2.4 | H15: 2.4 | I15: 6.4 | J15: 4.5 | K15: 360 | L15: 2.4 | M15: 2.4 | N15: 53.9 | O15: 4.5 | P15: 360 | Q15: 2.4 | R15: 2.4 | S15: 128.4 | T15: 4.5
A16: K3 | B16: =HOME!Q9 -> 20 | C16: Xsb3_r | D16: =D15+B14 -> 137 | F16: 390 | G16: 2.6 | H16: 2.466025404 | I16: 6.38269207 | J16: 5.5 | K16: 390 | L16: 2.6 | M16: 2.466025404 | N16: 54.17435874 | O16: 5.5 | P16: 390 | Q16: 2.6 | R16: 2.466025404 | S16: 128.2993587 | T16: 5.5
C17: X3_l | D17: =D15+B2 -> 128 | F17: 420 | G17: 2.8 | H17: 2.3 | I17: 6.133333333 | J17: 6.232050808 | K17: 420 | L17: 2.8 | M17: 2.3 | N17: 54.21666667 | O17: 6.232050808 | P17: 420 | Q17: 2.8 | R17: 2.3 | S17: 127.9666667 | T17: 6.232050808
A18: Hs1 | B18: =HOME!O8 -> 4.5 | C18: X3_r | D18: =D16+B3 -> 132 | F18: 450 | G18: 3 | H18: 2 | I18: 5.75 | J18: 6.5 | K18: 450 | L18: 3 | M18: 2 | N18: 54.125 | O18: 6.5 | P18: 450 | Q18: 3 | R18: 2 | S18: 127.5 | T18: 6.5
A19: Hs2 | B19: =HOME!P8 -> 4.5 | F19: 480 | G19: 3.2 | H19: 1.7 | I19: 5.366666667 | J19: 6.232050808 | K19: 480 | L19: 3.2 | M19: 1.7 | N19: 54.03333333 | O19: 6.232050808 | P19: 480 | Q19: 3.2 | R19: 1.7 | S19: 127.0333333 | T19: 6.232050808
A20: Hs3 | B20: =HOME!Q8 -> 4.5 | F20: 510 | G20: 3.4 | H20: 1.533974596 | I20: 5.11730793 | J20: 5.5 | K20: 510 | L20: 3.4 | M20: 1.533974596 | N20: 54.07564126 | O20: 5.5 | P20: 510 | Q20: 3.4 | R20: 1.533974596 | S20: 126.7006413 | T20: 5.5
F21: 540 | G21: 3.6 | H21: 1.6 | I21: 5.1 | J21: 4.5 | K21: 540 | L21: 3.6 | M21: 1.6 | N21: 54.35 | O21: 4.5 | P21: 540 | Q21: 3.6 | R21: 1.6 | S21: 126.6 | T21: 4.5
A22: kb1 | B22: =HOME!O10 -> 1.5 | F22: 570 | G22: 3.8 | H22: 1.933974596 | I22: 5.350641263 | J22: 3.5 | K22: 570 | L22: 3.8 | M22: 1.933974596 | N22: 54.89230793 | O22: 3.5 | P22: 570 | Q22: 3.8 | R22: 1.933974596 | S22: 126.7673079 | T22: 3.5
A23: kb2 | B23: =HOME!P10 -> 1.5 | F23: 600 | G23: 4 | H23: 2.5 | I23: 5.833333333 | J23: 2.767949192 | K23: 600 | L23: 4 | M23: 2.5 | N23: 55.66666667 | O23: 2.767949192 | P23: 600 | Q23: 4 | R23: 2.5 | S23: 127.1666667 | T23: 2.767949192
A24: kb3 | B24: =HOME!Q10 -> 1.5 | F24: 630 | G24: 4.2 | H24: 3.2 | I24: 6.45 | J24: 2.5 | K24: 630 | L24: 4.2 | M24: 3.2 | N24: 56.575 | O24: 2.5 | P24: 630 | Q24: 4.2 | R24: 3.2 | S24: 127.7 | T24: 2.5
F25: 660 | G25: 4.4 | H25: 3.9 | I25: 7.066666667 | J25: 2.767949192 | K25: 660 | L25: 4.4 | M25: 3.9 | N25: 57.48333333 | O25: 2.767949192 | P25: 660 | Q25: 4.4 | R25: 3.9 | S25: 128.2333333 | T25: 2.767949192
A26: kt1 | B26: =HOME!O11 -> 8 | F26: 690 | G26: 4.6 | H26: 4.466025404 | I26: 7.549358737 | J26: 3.5 | K26: 690 | L26: 4.6 | M26: 4.466025404 | N26: 58.25769207 | O26: 3.5 | P26: 690 | Q26: 4.6 | R26: 4.466025404 | S26: 128.6326921 | T26: 3.5
A27: kt2 | B27: =HOME!P11 -> 8 | F27: 720 | G27: 4.8 | H27: 4.8 | I27: 7.8 | J27: 4.5 | K27: 720 | L27: 4.8 | M27: 4.8 | N27: 58.8 | O27: 4.5 | P27: 720 | Q27: 4.8 | R27: 4.8 | S27: 128.8 | T27: 4.5
A28: kt3 | B28: =HOME!Q11 -> 8 | F28: 750 | G28: 5 | H28: 4.866025404 | I28: 7.78269207 | J28: 5.5 | K28: 750 | L28: 5 | M28: 4.866025404 | N28: 59.07435874 | O28: 5.5 | P28: 750 | Q28: 5 | R28: 4.866025404 | S28: 128.6993587 | T28: 5.5
F29: 780 | G29: 5.2 | H29: 4.7 | I29: 7.533333333 | J29: 6.232050808 | K29: 780 | L29: 5.2 | M29: 4.7 | N29: 59.11666667 | O29: 6.232050808 | P29: 780 | Q29: 5.2 | R29: 4.7 | S29: 128.3666667 | T29: 6.232050808
F30: 810 | G30: 5.4 | H30: 4.4 | I30: 7.15 | J30: 6.5 | K30: 810 | L30: 5.4 | M30: 4.4 | N30: 59.025 | O30: 6.5 | P30: 810 | Q30: 5.4 | R30: 4.4 | S30: 127.9 | T30: 6.5
A31: plot: | B31: x | C31: y | F31: 840 | G31: 5.6 | H31: 4.1 | I31: 6.766666667 | J31: 6.232050808 | K31: 840 | L31: 5.6 | M31: 4.1 | N31: 58.93333333 | O31: 6.232050808 | P31: 840 | Q31: 5.6 | R31: 4.1 | S31: 127.4333333 | T31: 6.232050808
A32: L1 | B32: =B4 -> 0 | C32: =B18 -> 4.5 | F32: 870 | G32: 5.8 | H32: 3.933974596 | I32: 6.51730793 | J32: 5.5 | K32: 870 | L32: 5.8 | M32: 3.933974596 | N32: 58.97564126 | O32: 5.5 | P32: 870 | Q32: 5.8 | R32: 3.933974596 | S32: 127.1006413 | T32: 5.5
B33: =D7 -> 5 | C33: =B18 -> 4.5 | F33: 900 | G33: 6 | H33: 4 | I33: 6.5 | J33: 4.5 | K33: 900 | L33: 6 | M33: 4 | N33: 59.25 | O33: 4.5 | P33: 900 | Q33: 6 | R33: 4 | S33: 127 | T33: 4.5
F34: 930 | G34: 6.2 | H34: 4.333974596 | I34: 6.750641263 | J34: 3.5 | K34: 930 | L34: 6.2 | M34: 4.333974596 | N34: 59.79230793 | O34: 3.5 | P34: 930 | Q34: 6.2 | R34: 4.333974596 | S34: 127.1673079 | T34: 3.5
A35: L2 | B35: =D8 -> 19 | C35: =B18 -> 4.5 | F35: 960 | G35: 6.4 | H35: 4.9 | I35: 7.233333333 | J35: 2.767949192 | K35: 960 | L35: 6.4 | M35: 4.9 | N35: 60.56666667 | O35: 2.767949192 | P35: 960 | Q35: 6.4 | R35: 4.9 | S35: 127.5666667 | T35: 2.767949192
B36: =D8+B7 -> 24 | C36: =B18 -> 4.5 | F36: 990 | G36: 6.6 | H36: 5.6 | I36: 7.85 | J36: 2.5 | K36: 990 | L36: 6.6 | M36: 5.6 | N36: 61.475 | O36: 2.5 | P36: 990 | Q36: 6.6 | R36: 5.6 | S36: 128.1 | T36: 2.5
F37: 1020 | G37: 6.8 | H37: 6.3 | I37: 8.466666667 | J37: 2.767949192 | K37: 1020 | L37: 6.8 | M37: 6.3 | N37: 62.38333333 | O37: 2.767949192 | P37: 1020 | Q37: 6.8 | R37: 6.3 | S37: 128.6333333 | T37: 2.767949192
A38: k1 | B38: =B36 -> 24 | C38: =B22 -> 1.5 | F38: 1050 | G38: 7 | H38: 6.866025404 | I38: 8.949358737 | J38: 3.5 | K38: 1050 | L38: 7 | M38: 6.866025404 | N38: 63.15769207 | O38: 3.5 | P38: 1050 | Q38: 7 | R38: 6.866025404 | S38: 129.0326921 | T38: 3.5
B39: =B38+B8 -> 44 | C39: =B22 -> 1.5 | F39: 1080 | G39: 7.2 | H39: 7.2 | I39: 9.2 | J39: 4.5 | K39: 1080 | L39: 7.2 | M39: 7.2 | N39: 63.7 | O39: 4.5 | P39: 1080 | Q39: 7.2 | R39: 7.2 | S39: 129.2 | T39: 4.5
B40: =B39 -> 44 | C40: =B26 -> 8 | F40: 1110 | G40: 7.4 | H40: 7.266025404 | I40: 9.18269207 | J40: 5.5 | K40: 1110 | L40: 7.4 | M40: 7.266025404 | N40: 63.97435874 | O40: 5.5 | P40: 1110 | Q40: 7.4 | R40: 7.266025404 | S40: 129.0993587 | T40: 5.5
B41: =B36 -> 24 | C41: =B26 -> 8 | F41: 1140 | G41: 7.6 | H41: 7.1 | I41: 8.933333333 | J41: 6.232050808 | K41: 1140 | L41: 7.6 | M41: 7.1 | N41: 64.01666667 | O41: 6.232050808 | P41: 1140 | Q41: 7.6 | R41: 7.1 | S41: 128.7666667 | T41: 6.232050808
B42: =B41 -> 24 | C42: =B22 -> 1.5 | F42: 1170 | G42: 7.8 | H42: 6.8 | I42: 8.55 | J42: 6.5 | K42: 1170 | L42: 7.8 | M42: 6.8 | N42: 63.925 | O42: 6.5 | P42: 1170 | Q42: 7.8 | R42: 6.8 | S42: 128.3 | T42: 6.5
F43: 1200 | G43: 8 | H43: 6.5 | I43: 8.166666667 | J43: 6.232050808 | K43: 1200 | L43: 8 | M43: 6.5 | N43: 63.83333333 | O43: 6.232050808 | P43: 1200 | Q43: 8 | R43: 6.5 | S43: 127.8333333 | T43: 6.232050808
A44: L3 | B44: =B36+B8 -> 44 | C44: =B19 -> 4.5 | F44: 1230 | G44: 8.2 | H44: 6.333974596 | I44: 7.91730793 | J44: 5.5 | K44: 1230 | L44: 8.2 | M44: 6.333974596 | N44: 63.87564126 | O44: 5.5 | P44: 1230 | Q44: 8.2 | R44: 6.333974596 | S44: 127.5006413 | T44: 5.5
B45: =B44+B9 -> 49 | C45: =B19 -> 4.5 | F45: 1260 | G45: 8.4 | H45: 6.4 | I45: 7.9 | J45: 4.5 | K45: 1260 | L45: 8.4 | M45: 6.4 | N45: 64.15 | O45: 4.5 | P45: 1260 | Q45: 8.4 | R45: 6.4 | S45: 127.4 | T45: 4.5
F46: 1290 | G46: 8.6 | H46: 6.733974596 | I46: 8.150641263 | J46: 3.5 | K46: 1290 | L46: 8.6 | M46: 6.733974596 | N46: 64.69230793 | O46: 3.5 | P46: 1290 | Q46: 8.6 | R46: 6.733974596 | S46: 127.5673079 | T46: 3.5
A47: L4 | B47: =D13 -> 98 | C47: =B19 -> 4.5 | F47: 1320 | G47: 8.8 | H47: 7.3 | I47: 8.633333333 | J47: 2.767949192 | K47: 1320 | L47: 8.8 | M47: 7.3 | N47: 65.46666667 | O47: 2.767949192 | P47: 1320 | Q47: 8.8 | R47: 7.3 | S47: 127.9666667 | T47: 2.767949192
B48: =D13+B11 -> 103 | C48: =B19 -> 4.5 | F48: 1350 | G48: 9 | H48: 8 | I48: 9.25 | J48: 2.5 | K48: 1350 | L48: 9 | M48: 8 | N48: 66.375 | O48: 2.5 | P48: 1350 | Q48: 9 | R48: 8 | S48: 128.5 | T48: 2.5
F49: 1380 | G49: 9.2 | H49: 8.7 | I49: 9.866666667 | J49: 2.767949192 | K49: 1380 | L49: 9.2 | M49: 8.7 | N49: 67.28333333 | O49: 2.767949192 | P49: 1380 | Q49: 9.2 | R49: 8.7 | S49: 129.0333333 | T49: 2.767949192
A50: k2 | B50: =B48 -> 103 | C50: =B23 -> 1.5 | F50: 1410 | G50: 9.4 | H50: 9.266025404 | I50: 10.34935874 | J50: 3.5 | K50: 1410 | L50: 9.4 | M50: 9.266025404 | N50: 68.05769207 | O50: 3.5 | P50: 1410 | Q50: 9.4 | R50: 9.266025404 | S50: 129.4326921 | T50: 3.5
B51: =B50+B12 -> 123 | C51: =B23 -> 1.5 | F51: 1440 | G51: 9.6 | H51: 9.6 | I51: 10.6 | J51: 4.5 | K51: 1440 | L51: 9.6 | M51: 9.6 | N51: 68.6 | O51: 4.5 | P51: 1440 | Q51: 9.6 | R51: 9.6 | S51: 129.6 | T51: 4.5
B52: =B51 -> 123 | C52: =B27 -> 8 | F52: 1470 | G52: 9.8 | H52: 9.666025404 | I52: 10.58269207 | J52: 5.5 | K52: 1470 | L52: 9.8 | M52: 9.666025404 | N52: 68.87435874 | O52: 5.5 | P52: 1470 | Q52: 9.8 | R52: 9.666025404 | S52: 129.4993587 | T52: 5.5
B53: =B48 -> 103 | C53: =B27 -> 8 | F53: 1500 | G53: 10 | H53: 9.5 | I53: 10.33333333 | J53: 6.232050808 | K53: 1500 | L53: 10 | M53: 9.5 | N53: 68.91666667 | O53: 6.232050808 | P53: 1500 | Q53: 10 | R53: 9.5 | S53: 129.1666667 | T53: 6.232050808
B54: =B48 -> 103 | C54: =B23 -> 1.5 | F54: 1530 | G54: 10.2 | H54: 9.2 | I54: 9.95 | J54: 6.5 | K54: 1530 | L54: 10.2 | M54: 9.2 | N54: 68.825 | O54: 6.5 | P54: 1530 | Q54: 10.2 | R54: 9.2 | S54: 128.7 | T54: 6.5
F55: 1560 | G55: 10.4 | H55: 8.9 | I55: 9.566666667 | J55: 6.232050808 | K55: 1560 | L55: 10.4 | M55: 8.9 | N55: 68.73333333 | O55: 6.232050808 | P55: 1560 | Q55: 10.4 | R55: 8.9 | S55: 128.2333333 | T55: 6.232050808
A56: L5 | B56: =B48+B12 -> 123 | C56: =B20 -> 4.5 | F56: 1590 | G56: 10.6 | H56: 8.733974596 | I56: 9.31730793 | J56: 5.5 | K56: 1590 | L56: 10.6 | M56: 8.733974596 | N56: 68.77564126 | O56: 5.5 | P56: 1590 | Q56: 10.6 | R56: 8.733974596 | S56: 127.9006413 | T56: 5.5
B57: =B56+B13 -> 128 | C57: =B20 -> 4.5 | F57: 1620 | G57: 10.8 | H57: 8.8 | I57: 9.3 | J57: 4.5 | K57: 1620 | L57: 10.8 | M57: 8.8 | N57: 69.05 | O57: 4.5 | P57: 1620 | Q57: 10.8 | R57: 8.8 | S57: 127.8 | T57: 4.5
F58: 1650 | G58: 11 | H58: 9.133974596 | I58: 9.550641263 | J58: 3.5 | K58: 1650 | L58: 11 | M58: 9.133974596 | N58: 69.59230793 | O58: 3.5 | P58: 1650 | Q58: 11 | R58: 9.133974596 | S58: 127.9673079 | T58: 3.5
A59: L6 | B59: =D18 -> 132 | C59: =B20 -> 4.5 | F59: 1680 | G59: 11.2 | H59: 9.7 | I59: 10.03333333 | J59: 2.767949192 | K59: 1680 | L59: 11.2 | M59: 9.7 | N59: 70.36666667 | O59: 2.767949192 | P59: 1680 | Q59: 11.2 | R59: 9.7 | S59: 128.3666667 | T59: 2.767949192
B60: =D18+B15 -> 137 | C60: =B20 -> 4.5 | F60: 1710 | G60: 11.4 | H60: 10.4 | I60: 10.65 | J60: 2.5 | K60: 1710 | L60: 11.4 | M60: 10.4 | N60: 71.275 | O60: 2.5 | P60: 1710 | Q60: 11.4 | R60: 10.4 | S60: 128.9 | T60: 2.5
F61: 1740 | G61: 11.6 | H61: 11.1 | I61: 11.26666667 | J61: 2.767949192 | K61: 1740 | L61: 11.6 | M61: 11.1 | N61: 72.18333333 | O61: 2.767949192 | P61: 1740 | Q61: 11.6 | R61: 11.1 | S61: 129.4333333 | T61: 2.767949192
A62: k3 | B62: =B60 -> 137 | C62: =B24 -> 1.5 | F62: 1770 | G62: 11.8 | H62: 11.6660254 | I62: 11.74935874 | J62: 3.5 | K62: 1770 | L62: 11.8 | M62: 11.6660254 | N62: 72.95769207 | O62: 3.5 | P62: 1770 | Q62: 11.8 | R62: 11.6660254 | S62: 129.8326921 | T62: 3.5
B63: =B60+B16 -> 157 | C63: =B24 -> 1.5 | F63: 1800 | G63: 12 | H63: 12 | I63: 12 | J63: 4.5 | K63: 1800 | L63: 12 | M63: 12 | N63: 73.5 | O63: 4.5 | P63: 1800 | Q63: 12 | R63: 12 | S63: 130 | T63: 4.5
B64: =B63 -> 157 | C64: =B28 -> 8 | F64: 1830 | G64: 12.2 | H64: 12.0660254 | I64: 11.98269207 | J64: 5.5 | K64: 1830 | L64: 12.2 | M64: 12.0660254 | N64: 73.77435874 | O64: 5.5 | P64: 1830 | Q64: 12.2 | R64: 12.0660254 | S64: 129.8993587 | T64: 5.5
B65: =B62 -> 137 | C65: =B28 -> 8 | F65: 1860 | G65: 12.4 | H65: 11.9 | I65: 11.73333333 | J65: 6.232050808 | K65: 1860 | L65: 12.4 | M65: 11.9 | N65: 73.81666667 | O65: 6.232050808 | P65: 1860 | Q65: 12.4 | R65: 11.9 | S65: 129.5666667 | T65: 6.232050808
B66: =B62 -> 137 | C66: =B24 -> 1.5 | F66: 1890 | G66: 12.6 | H66: 11.6 | I66: 11.35 | J66: 6.5 | K66: 1890 | L66: 12.6 | M66: 11.6 | N66: 73.725 | O66: 6.5 | P66: 1890 | Q66: 12.6 | R66: 11.6 | S66: 129.1 | T66: 6.5
F67: 1920 | G67: 12.8 | H67: 11.3 | I67: 10.96666667 | J67: 6.232050808 | K67: 1920 | L67: 12.8 | M67: 11.3 | N67: 73.63333333 | O67: 6.232050808 | P67: 1920 | Q67: 12.8 | R67: 11.3 | S67: 128.6333333 | T67: 6.232050808
B68: 0.15 | F68: =IF(F67<$I$2,F67+30,NA()) -> 1950 | G68: =G67+$G$2 -> 13 | H68: =-1+COS(F68*PI()/180)+G68 -> 11.1339746 | I68: =(F68/$I$2)*($D$8-$D$7)+COS(F68*PI()/180)+$D$7-1 -> 10.71730793 | J68: =$J$2*SIN(F68*PI()/180)+$B$18 -> 5.5 | K68: 1950 | L68: 13 | M68: =-1+COS(K68*PI()/180)+L68 -> 11.1339746 | N68: =(K68/$N$2)*($D$13-$D$12)+COS(K68*PI()/180)+$D$12-1 -> 73.67564126 | O68: =$O$2*SIN(K68*PI()/180)+$B$19 -> 5.5 | P68: 1950 | Q68: =Q67+$G$2 -> 13 | R68: =-1+COS(P68*PI()/180)+Q68 -> 11.1339746 | S68: =(P68/$S$2)*($D$18-$D$17)+COS(P68*PI()/180)+$D$17-1 -> 128.3006413 | T68: =$T$2*SIN(P68*PI()/180)+$B$20 -> 5.5
A69: wheels | B69: =B38+B68*B8 -> 27 | C69: =B22/2 -> 0.75 | F69: 1980 | G69: 13.2 | H69: 11.2 | I69: 10.7 | J69: 4.5 | K69: =IF(K68<$N$2,K68+30,NA()) -> 1980 | L69: =L68+$L$2 -> 13.2 | M69: 11.2 | N69: 73.95 | O69: 4.5 | P69: =IF(P68<$S$2,P68+30,NA()) -> 1980 | Q69: 13.2 | R69: 11.2 | S69: 128.2 | T69: 4.5
B70: =B39-B68*B8 -> 41 | C70: =B22/2 -> 0.75 | F70: 2010 | G70: 13.4 | H70: 11.5339746 | I70: 10.95064126 | J70: 3.5 | K70: 2010 | L70: 13.4 | M70: 11.5339746 | N70: 74.49230793 | O70: 3.5 | P70: 2010 | Q70: 13.4 | R70: 11.5339746 | S70: 128.3673079 | T70: 3.5
B71: =B50+B68*B12 -> 106 | C71: =B22/2 -> 0.75 | F71: 2040 | G71: 13.6 | H71: 12.1 | I71: 11.43333333 | J71: 2.767949192 | K71: 2040 | L71: 13.6 | M71: 12.1 | N71: 75.26666667 | O71: 2.767949192 | P71: 2040 | Q71: 13.6 | R71: 12.1 | S71: 128.7666667 | T71: 2.767949192
B72: =B51-B68*B12 -> 120 | C72: =B22/2 -> 0.75 | F72: 2070 | G72: 13.8 | H72: 12.8 | I72: 12.05 | J72: 2.5 | K72: 2070 | L72: 13.8 | M72: 12.8 | N72: 76.175 | O72: 2.5 | P72: 2070 | Q72: 13.8 | R72: 12.8 | S72: 129.3 | T72: 2.5
B73: =B62+B68*B16 -> 140 | C73: =B22/2 -> 0.75 | F73: 2100 | G73: 14 | H73: 13.5 | I73: 12.66666667 | J73: 2.767949192 | K73: 2100 | L73: 14 | M73: 13.5 | N73: 77.08333333 | O73: 2.767949192 | P73: 2100 | Q73: 14 | R73: 13.5 | S73: 129.8333333 | T73: 2.767949192
B74: =B63-B68*B16 -> 154 | C74: =B22/2 -> 0.75 | F74: 2130 | G74: 14.2 | H74: 14.0660254 | I74: 13.14935874 | J74: 3.5 | K74: 2130 | L74: 14.2 | M74: 14.0660254 | N74: 77.85769207 | O74: 3.5 | P74: 2130 | Q74: 14.2 | R74: 14.0660254 | S74: 130.2326921 | T74: 3.5
F75: 2160 | G75: 14.4 | H75: 14.4 | I75: 13.4 | J75: 4.5 | K75: 2160 | L75: 14.4 | M75: 14.4 | N75: 78.4 | O75: 4.5 | P75: 2160 | Q75: 14.4 | R75: 14.4 | S75: 130.4 | T75: 4.5
A76: lines | B76: 0.1 | F76: 2190 | G76: 14.6 | H76: 14.4660254 | I76: 13.38269207 | J76: 5.5 | K76: 2190 | L76: 14.6 | M76: 14.4660254 | N76: 78.67435874 | O76: 5.5 | P76: 2190 | Q76: 14.6 | R76: 14.4660254 | S76: 130.2993587 | T76: 5.5
F77: 2220 | G77: 14.8 | H77: 14.3 | I77: 13.13333333 | J77: 6.232050808 | K77: 2220 | L77: 14.8 | M77: 14.3 | N77: 78.71666667 | O77: 6.232050808 | P77: 2220 | Q77: 14.8 | R77: 14.3 | S77: 129.9666667 | T77: 6.232050808
A78: zero | B78: =B4 -> 0 | C78: 0 | F78: 2250 | G78: 15 | H78: 14 | I78: 12.75 | J78: 6.5 | K78: 2250 | L78: 15 | M78: 14 | N78: 78.625 | O78: 6.5 | P78: 2250 | Q78: 15 | R78: 14 | S78: 129.5 | T78: 6.5
B79: =B4 -> 0 | C79: =B26+B26*B76 -> 8.8 | F79: 2280 | G79: 15.2 | H79: 13.7 | I79: 12.36666667 | J79: 6.232050808 | K79: 2280 | L79: 15.2 | M79: 13.7 | N79: 78.53333333 | O79: 6.232050808 | P79: 2280 | Q79: 15.2 | R79: 13.7 | S79: 129.0333333 | T79: 6.232050808
F80: 2310 | G80: 15.4 | H80: 13.5339746 | I80: 12.11730793 | J80: 5.5 | K80: 2310 | L80: 15.4 | M80: 13.5339746 | N80: 78.57564126 | O80: 5.5 | P80: 2310 | Q80: 15.4 | R80: 13.5339746 | S80: 128.7006413 | T80: 5.5
A81: neutral1 | B81: =D6+B7+B8/2 -> 44 | C81: =C98 -> -2 | F81: 2340 | G81: 15.6 | H81: 13.6 | I81: 12.1 | J81: 4.5 | K81: 2340 | L81: 15.6 | M81: 13.6 | N81: 78.85 | O81: 4.5 | P81: 2340 | Q81: 15.6 | R81: 13.6 | S81: 128.6 | T81: 4.5
B82: =B81 -> 44 | C82: =B26+B26*B76 -> 8.8 | F82: 2370 | G82: 15.8 | H82: 13.9339746 | I82: 12.35064126 | J82: 3.5 | K82: 2370 | L82: 15.8 | M82: 13.9339746 | N82: 79.39230793 | O82: 3.5 | P82: 2370 | Q82: 15.8 | R82: 13.9339746 | S82: 128.7673079 | T82: 3.5
F83: 2400 | G83: 16 | H83: 14.5 | I83: 12.83333333 | J83: 2.767949192 | K83: 2400 | L83: 16 | M83: 14.5 | N83: 80.16666667 | O83: 2.767949192 | P83: 2400 | Q83: 16 | R83: 14.5 | S83: 129.1666667 | T83: 2.767949192
A84: neutral2 | B84: =D11+B11+B12/2 -> 98 | C84: =C98 -> -2 | F84: 2430 | G84: 16.2 | H84: 15.2 | I84: 13.45 | J84: 2.5 | K84: 2430 | L84: 16.2 | M84: 15.2 | N84: 81.075 | O84: 2.5 | P84: 2430 | Q84: 16.2 | R84: 15.2 | S84: 129.7 | T84: 2.5
B85: =B84 -> 98 | C85: =B26+B26*B76 -> 8.8 | F85: 2460 | G85: 16.4 | H85: 15.9 | I85: 14.06666667 | J85: 2.767949192 | K85: 2460 | L85: 16.4 | M85: 15.9 | N85: 81.98333333 | O85: 2.767949192 | P85: 2460 | Q85: 16.4 | R85: 15.9 | S85: 130.2333333 | T85: 2.767949192
F86: 2490 | G86: 16.6 | H86: 16.4660254 | I86: 14.54935874 | J86: 3.5 | K86: 2490 | L86: 16.6 | M86: 16.4660254 | N86: 82.75769207 | O86: 3.5 | P86: 2490 | Q86: 16.6 | R86: 16.4660254 | S86: 130.6326921 | T86: 3.5
A87: neutral3 | B87: =D16+B15+B16/2 -> 152 | C87: =C98 -> -2 | F87: 2520 | G87: 16.8 | H87: 16.8 | I87: 14.8 | J87: 4.5 | K87: 2520 | L87: 16.8 | M87: 16.8 | N87: 83.3 | O87: 4.5 | P87: 2520 | Q87: 16.8 | R87: 16.8 | S87: 130.8 | T87: 4.5
B88: =B87 -> 152 | C88: =B26+B26*B76 -> 8.8 | F88: 2550 | G88: 17 | H88: 16.8660254 | I88: 14.78269207 | J88: 5.5 | K88: 2550 | L88: 17 | M88: 16.8660254 | N88: 83.57435874 | O88: 5.5 | P88: 2550 | Q88: 17 | R88: 16.8660254 | S88: 130.6993587 | T88: 5.5
F89: 2580 | G89: 17.2 | H89: 16.7 | I89: 14.53333333 | J89: 6.232050808 | K89: 2580 | L89: 17.2 | M89: 16.7 | N89: 83.61666667 | O89: 6.232050808 | P89: 2580 | Q89: 17.2 | R89: 16.7 | S89: 130.3666667 | T89: 6.232050808
B90: position | F90: 2610 | G90: 17.4 | H90: 16.4 | I90: 14.15 | J90: 6.5 | K90: 2610 | L90: 17.4 | M90: 16.4 | N90: 83.525 | O90: 6.5 | P90: 2610 | Q90: 17.4 | R90: 16.4 | S90: 129.9 | T90: 6.5
A91: hands | B91: =IF(CALC!B36=0,NA(),D8+B7+B8/2) ->  | C91: =IF(CALC!B36=0,NA(),B22+(B26-B22)/2) ->  | F91: 2640 | G91: 17.6 | H91: 16.1 | I91: 13.76666667 | J91: 6.232050808 | K91: 2640 | L91: 17.6 | M91: 16.1 | N91: 83.43333333 | O91: 6.232050808 | P91: 2640 | Q91: 17.6 | R91: 16.1 | S91: 129.4333333 | T91: 6.232050808
B92: =IF(CALC!B37=0,NA(),D13+B11+B12/2) ->  | C92: =IF(CALC!B37=0,NA(),B23+(B27-B23)/2) ->  | F92: 2670 | G92: 17.8 | H92: 15.9339746 | I92: 13.51730793 | J92: 5.5 | K92: 2670 | L92: 17.8 | M92: 15.9339746 | N92: 83.47564126 | O92: 5.5 | P92: 2670 | Q92: 17.8 | R92: 15.9339746 | S92: 129.1006413 | T92: 5.5
B93: =IF(CALC!B38=0,NA(),D18+B15+B16/2) ->  | C93: =IF(CALC!B38=0,NA(),B24+(B28-B24)/2) ->  | F93: 2700 | G93: 18 | H93: 16 | I93: 13.5 | J93: 4.5 | K93: 2700 | L93: 18 | M93: 16 | N93: 83.75 | O93: 4.5 | P93: 2700 | Q93: 18 | R93: 16 | S93: 129 | T93: 4.5
F94: 2730 | G94: 18.2 | H94: 16.3339746 | I94: 13.75064126 | J94: 3.5 | K94: 2730 | L94: 18.2 | M94: 16.3339746 | N94: 84.29230793 | O94: 3.5 | P94: 2730 | Q94: 18.2 | R94: 16.3339746 | S94: 129.1673079 | T94: 3.5
A95: RKerror | B95: =IF(CALC!C1=1,IF(OR(ABS(B1)>100000000,ABS(B2)>100000000,ABS(B3)>100000000),B84,NA()),NA()) ->  | C95: =IF(CALC!C1=1,IF(OR(ABS(B1)>100000000,ABS(B2)>100000000,ABS(B3)>100000000),C85*0.8,NA()),NA()) ->  | F95: 2760 | G95: 18.4 | H95: 16.9 | I95: 14.23333333 | J95: 2.767949192 | K95: 2760 | L95: 18.4 | M95: 16.9 | N95: 85.06666667 | O95: 2.767949192 | P95: 2760 | Q95: 18.4 | R95: 16.9 | S95: 129.5666667 | T95: 2.767949192
A96: Aerror2 | B96: =IF(CALC!C1=2,IF(ISNUMBER(CALC!CB3),NA(),B84),NA()) ->  | C96: =IF(CALC!C1=2,IF(ISNUMBER(CALC!CB3),NA(),C85*0.8),NA()) ->  | F96: 2790 | G96: 18.6 | H96: 17.6 | I96: 14.85 | J96: 2.5 | K96: 2790 | L96: 18.6 | M96: 17.6 | N96: 85.975 | O96: 2.5 | P96: 2790 | Q96: 18.6 | R96: 17.6 | S96: 130.1 | T96: 2.5
A97: forces | B97: =IF(HOME!AI1=0,HOME!E7,HOME!F37) -> 20 | C97: pos | F97: 2820 | G97: 18.8 | H97: 18.3 | I97: 15.46666667 | J97: 2.767949192 | K97: 2820 | L97: 18.8 | M97: 18.3 | N97: 86.88333333 | O97: 2.767949192 | P97: 2820 | Q97: 18.8 | R97: 18.3 | S97: 130.6333333 | T97: 2.767949192
B98: =IF(HOME!AI2=0,HOME!G7,HOME!N37) -> 10 | C98: -2 | F98: 2850 | G98: 19 | H98: 18.8660254 | I98: 15.94935874 | J98: 3.5 | K98: 2850 | L98: 19 | M98: 18.8660254 | N98: 87.65769207 | O98: 3.5 | P98: 2850 | Q98: 19 | R98: 18.8660254 | S98: 131.0326921 | T98: 3.5
B99: =IF(HOME!AI3=0,HOME!I7,HOME!V37) -> 30 | F99: 2880 | G99: 19.2 | H99: 19.2 | I99: 16.2 | J99: 4.5 | K99: 2880 | L99: 19.2 | M99: 19.2 | N99: 88.2 | O99: 4.5 | P99: 2880 | Q99: 19.2 | R99: 19.2 | S99: 131.2 | T99: 4.5
A100: la | B100: =((B87-B84)+(B84-B81)/2) -> 81 | F100: 2910 | G100: 19.4 | H100: 19.2660254 | I100: 16.18269207 | J100: 5.5 | K100: 2910 | L100: 19.4 | M100: 19.2660254 | N100: 88.47435874 | O100: 5.5 | P100: 2910 | Q100: 19.4 | R100: 19.2660254 | S100: 131.0993587 | T100: 5.5
A101: scale | B101: 0.4 | F101: 2940 | G101: 19.6 | H101: 19.1 | I101: 15.93333333 | J101: 6.232050808 | K101: 2940 | L101: 19.6 | M101: 19.1 | N101: 88.51666667 | O101: 6.232050808 | P101: 2940 | Q101: 19.6 | R101: 19.1 | S101: 130.7666667 | T101: 6.232050808
B102: =B100*B101 -> 32.4 | F102: 2970 | G102: 19.8 | H102: 18.8 | I102: 15.55 | J102: 6.5 | K102: 2970 | L102: 19.8 | M102: 18.8 | N102: 88.425 | O102: 6.5 | P102: 2970 | Q102: 19.8 | R102: 18.8 | S102: 130.3 | T102: 6.5
A103: Fmax | B103: =IF(MAX(B97:B99)=0,NA(),MAX(B97:B99)) -> 30 | F103: 3000 | G103: 20 | H103: 18.5 | I103: 15.16666667 | J103: 6.232050808 | K103: 3000 | L103: 20 | M103: 18.5 | N103: 88.33333333 | O103: 6.232050808 | P103: 3000 | Q103: 20 | R103: 18.5 | S103: 129.8333333 | T103: 6.232050808
A104: scalefactor | B104: =B102/B103 -> 1.08 | F104: 3030 | G104: 20.2 | H104: 18.3339746 | I104: 14.91730793 | J104: 5.5 | K104: 3030 | L104: 20.2 | M104: 18.3339746 | N104: 88.37564126 | O104: 5.5 | P104: 3030 | Q104: 20.2 | R104: 18.3339746 | S104: 129.5006413 | T104: 5.5
F105: 3060 | G105: 20.4 | H105: 18.4 | I105: 14.9 | J105: 4.5 | K105: 3060 | L105: 20.4 | M105: 18.4 | N105: 88.65 | O105: 4.5 | P105: 3060 | Q105: 20.4 | R105: 18.4 | S105: 129.4 | T105: 4.5
F106: 3090 | G106: 20.6 | H106: 18.7339746 | I106: 15.15064126 | J106: 3.5 | K106: 3090 | L106: 20.6 | M106: 18.7339746 | N106: 89.19230793 | O106: 3.5 | P106: 3090 | Q106: 20.6 | R106: 18.7339746 | S106: 129.5673079 | T106: 3.5
A107: scaledF | B107: =B97*$B$104 -> 21.6 | F107: 3120 | G107: 20.8 | H107: 19.3 | I107: 15.63333333 | J107: 2.767949192 | K107: 3120 | L107: 20.8 | M107: 19.3 | N107: 89.96666667 | O107: 2.767949192 | P107: 3120 | Q107: 20.8 | R107: 19.3 | S107: 129.9666667 | T107: 2.767949192
B108: =B98*$B$104 -> 10.8 | F108: 3150 | G108: 21 | H108: 20 | I108: 16.25 | J108: 2.5 | K108: 3150 | L108: 21 | M108: 20 | N108: 90.875 | O108: 2.5 | P108: 3150 | Q108: 21 | R108: 20 | S108: 130.5 | T108: 2.5
B109: 32.4 | F109: 3180 | G109: 21.2 | H109: 20.7 | I109: 16.86666667 | J109: 2.767949192 | K109: 3180 | L109: 21.2 | M109: 20.7 | N109: 91.78333333 | O109: 2.767949192 | P109: 3180 | Q109: 21.2 | R109: 20.7 | S109: 131.0333333 | T109: 2.767949192
F110: 3210 | G110: 21.4 | H110: 21.2660254 | I110: 17.34935874 | J110: 3.5 | K110: 3210 | L110: 21.4 | M110: 21.2660254 | N110: 92.55769207 | O110: 3.5 | P110: 3210 | Q110: 21.4 | R110: 21.2660254 | S110: 131.4326921 | T110: 3.5
A111: msF | B111: =HOME!I37*ANIMATION!$B$104 -> -18.17577327 | F111: 3240 | G111: 21.6 | H111: 21.6 | I111: 17.6 | J111: 4.5 | K111: 3240 | L111: 21.6 | M111: 21.6 | N111: 93.1 | O111: 4.5 | P111: 3240 | Q111: 21.6 | R111: 21.6 | S111: 131.6 | T111: 4.5
B112: =HOME!Q37*ANIMATION!B104 -> 10.77294586 | F112: 3270 | G112: 21.8 | H112: 21.6660254 | I112: 17.58269207 | J112: 5.5 | K112: 3270 | L112: 21.8 | M112: 21.6660254 | N112: 93.37435874 | O112: 5.5 | P112: 3270 | Q112: 21.8 | R112: 21.6660254 | S112: 131.4993587 | T112: 5.5
B113: =HOME!Y37*ANIMATION!B104 -> 18.29441614 | F113: 3300 | G113: 22 | H113: 21.5 | I113: 17.33333333 | J113: 6.232050808 | K113: 3300 | L113: 22 | M113: 21.5 | N113: 93.41666667 | O113: 6.232050808 | P113: 3300 | Q113: 22 | R113: 21.5 | S113: 131.1666667 | T113: 6.232050808
F114: 3330 | G114: 22.2 | H114: 21.2 | I114: 16.95 | J114: 6.5 | K114: 3330 | L114: 22.2 | M114: 21.2 | N114: 93.325 | O114: 6.5 | P114: 3330 | Q114: 22.2 | R114: 21.2 | S114: 130.7 | T114: 6.5
A115: plot | B115: =B81 -> 44 | C115: =C81 -> -2 | F115: 3360 | G115: 22.4 | H115: 20.9 | I115: 16.56666667 | J115: 6.232050808 | K115: 3360 | L115: 22.4 | M115: 20.9 | N115: 93.23333333 | O115: 6.232050808 | P115: 3360 | Q115: 22.4 | R115: 20.9 | S115: 130.2333333 | T115: 6.232050808
B116: =B81+B111 -> 25.82422673 | C116: =C81 -> -2 | F116: 3390 | G116: 22.6 | H116: 20.7339746 | I116: 16.31730793 | J116: 5.5 | K116: 3390 | L116: 22.6 | M116: 20.7339746 | N116: 93.27564126 | O116: 5.5 | P116: 3390 | Q116: 22.6 | R116: 20.7339746 | S116: 129.9006413 | T116: 5.5
B117: =B84 -> 98 | C117: =C84 -> -2 | F117: 3420 | G117: 22.8 | H117: 20.8 | I117: 16.3 | J117: 4.5 | K117: 3420 | L117: 22.8 | M117: 20.8 | N117: 93.55 | O117: 4.5 | P117: 3420 | Q117: 22.8 | R117: 20.8 | S117: 129.8 | T117: 4.5
B118: =B84+B112 -> 108.7729459 | C118: =C84 -> -2 | F118: 3450 | G118: 23 | H118: 21.1339746 | I118: 16.55064126 | J118: 3.5 | K118: 3450 | L118: 23 | M118: 21.1339746 | N118: 94.09230793 | O118: 3.5 | P118: 3450 | Q118: 23 | R118: 21.1339746 | S118: 129.9673079 | T118: 3.5
B119: =B87 -> 152 | C119: =C87 -> -2 | F119: 3480 | G119: 23.2 | H119: 21.7 | I119: 17.03333333 | J119: 2.767949192 | K119: 3480 | L119: 23.2 | M119: 21.7 | N119: 94.86666667 | O119: 2.767949192 | P119: 3480 | Q119: 23.2 | R119: 21.7 | S119: 130.3666667 | T119: 2.767949192
B120: =B87+B113 -> 170.2944161 | C120: =C87 -> -2 | F120: 3510 | G120: 23.4 | H120: 22.4 | I120: 17.65 | J120: 2.5 | K120: 3510 | L120: 23.4 | M120: 22.4 | N120: 95.775 | O120: 2.5 | P120: 3510 | Q120: 23.4 | R120: 22.4 | S120: 130.9 | T120: 2.5
F121: 3540 | G121: 23.6 | H121: 23.1 | I121: 18.26666667 | J121: 2.767949192 | K121: 3540 | L121: 23.6 | M121: 23.1 | N121: 96.68333333 | O121: 2.767949192 | P121: 3540 | Q121: 23.6 | R121: 23.1 | S121: 131.4333333 | T121: 2.767949192
B122: 0.2 | C122: 10 | F122: 3570 | G122: 23.8 | H122: 23.6660254 | I122: 18.74935874 | J122: 3.5 | K122: 3570 | L122: 23.8 | M122: 23.6660254 | N122: 97.45769207 | O122: 3.5 | P122: 3570 | Q122: 23.8 | R122: 23.6660254 | S122: 131.8326921 | T122: 3.5
A123: arr | B123: =B116-B111*B122*COS(C122*PI()/180) -> 29.40415522 | C123: =C116+B111*B122*SIN(C122*PI()/180) -> -2.631237981 | F123: 3600 | G123: 24 | H123: 24 | I123: 19 | J123: 4.5 | K123: 3600 | L123: 24 | M123: 24 | N123: 98 | O123: 4.5 | P123: 3600 | Q123: 24 | R123: 24 | S123: 132 | T123: 4.5
B124: =B116 -> 25.82422673 | C124: =C116 -> -2 | G124: 24.2 | L124: 24.2 | Q124: 24.2
B125: =B116-B111*B122*COS(C122*PI()/180) -> 29.40415522 | C125: =C116-B111*B122*SIN(C122*PI()/180) -> -1.368762019 | G125: 24.4 | L125: 24.4 | Q125: 24.4
G126: 24.6 | L126: 24.6 | Q126: 24.6
B127: =B118-B112*B122*COS(C122*PI()/180) -> 106.6510897 | C127: =C118+B112*B122*SIN(C122*PI()/180) -> -1.625859517 | G127: 24.8 | L127: 24.8 | Q127: 24.8
B128: =B118 -> 108.7729459 | C128: =C118 -> -2 | G128: 25 | L128: 25 | Q128: 25
B129: =B118-B112*B122*COS(C122*PI()/180) -> 106.6510897 | C129: =C118-B112*B122*SIN(C122*PI()/180) -> -2.374140483 | G129: 25.2 | L129: 25.2 | Q129: 25.2
G130: 25.4 | L130: 25.4 | Q130: 25.4
B131: =B120-B113*B122*COS(C122*PI()/180) -> 166.6911196 | C131: =C120+B113*B122*SIN(C122*PI()/180) -> -1.364641595 | G131: 25.6 | L131: 25.6 | Q131: 25.6
B132: =B120 -> 170.2944161 | C132: =C120 -> -2 | F132: =IF(F131<$I$2,F131+30,NA()) ->  | G132: =G131+$G$2 -> 25.8 | H132: =-1+COS(F132*PI()/180)+G132 ->  | I132: =(F132/$I$2)*($D$8-$D$7)+COS(F132*PI()/180)+$D$7-1 ->  | J132: =$J$2*SIN(F132*PI()/180)+$B$18 ->  | L132: 25.8 | M132: =-1+COS(K132*PI()/180)+L132 ->  | N132: =(K132/$N$2)*($D$13-$D$12)+COS(K132*PI()/180)+$D$12-1 ->  | O132: =$O$2*SIN(K132*PI()/180)+$B$19 ->  | Q132: =Q131+$G$2 -> 25.8 | R132: =-1+COS(P132*PI()/180)+Q132 ->  | S132: =(P132/$S$2)*($D$18-$D$17)+COS(P132*PI()/180)+$D$17-1 ->  | T132: =$T$2*SIN(P132*PI()/180)+$B$20 -> 
B133: =B120-B113*B122*COS(C122*PI()/180) -> 166.6911196 | C133: =C120-B113*B122*SIN(C122*PI()/180) -> -2.635358405 | G133: 26 | K133: =IF(K132<$N$2,K132+30,NA()) ->  | L133: =L132+$L$2 -> 26 | P133: =IF(P132<$S$2,P132+30,NA()) ->  | Q133: 26
G134: 26.2 | L134: 26.2 | Q134: 26.2
B135: =MAX(B39,B51,B63,) -> 157 | G135: 26.4 | L135: 26.4 | Q135: 26.4
B136: =MIN(0,B38,B50,B62,) -> 0 | G136: 26.6 | L136: 26.6 | Q136: 26.6
G137: 26.8 | L137: 26.8 | Q137: 26.8
G138: 27 | L138: 27 | Q138: 27
G139: 27.2 | L139: 27.2 | Q139: 27.2
G140: 27.4 | L140: 27.4 | Q140: 27.4
G141: 27.6 | L141: 27.6 | Q141: 27.6
A142: GUYAN | B142: =HOME!AJ50 -> 0 | G142: 27.8 | L142: 27.8 | Q142: 27.8
A143: case | B143: ='2DOF'!E2 -> 3 | G143: 28 | L143: 28 | Q143: 28
A144: neut | B144: 1 | C144: 2 | G144: 28.2 | L144: 28.2 | Q144: 28.2
G145: 28.4 | L145: 28.4 | Q145: 28.4
A146: neutral | B146: =IF(B142=0,NA(),IF(B143=1,B81,IF(B143=2,B81,B84))) ->  | C146: =IF(B143=1,B84,IF(B143=2,B87,B87)) -> 152 | G146: 28.6 | L146: 28.6 | Q146: 28.6
A147: actual | B147: =B146+'2DOF'!V4 ->  | C147: =C146+'2DOF'!W4 -> 147 | G147: 28.8 | L147: 28.8 | Q147: 28.8
A148: K | B148: =IF(B143=1,B8,IF(B143=2,B8,B12)) -> 20 | C148: =IF(B142=0,NA(),IF(B143=1,B12,IF(B143=2,B16,B16))) ->  | G148: 29 | L148: 29 | Q148: 29
A149: Kb | B149: =IF(B143=1,B22,IF(B143=2,B22,B23)) -> 1.5 | C149: =IF(B143=1,B23,IF(B143=2,B24,B24)) -> 1.5 | G149: 29.2 | L149: 29.2 | Q149: 29.2
A150: Kt | B150: =IF(B143=1,B26,IF(B143=2,B26,B27)) -> 8 | C150: =IF(B143=1,B27,IF(B143=2,B28,B28)) -> 8 | G150: 29.4 | L150: 29.4 | Q150: 29.4
G151: 29.6 | L151: 29.6 | Q151: 29.6
G152: 29.8 | L152: 29.8 | Q152: 29.8
A153: K1 | B153: =B147-B148/2 ->  | C153: =IF(B142=0,NA(),B149) ->  | G153: 30 | L153: 30 | Q153: 30
B154: =IF(B142=0,NA(),B153) ->  | C154: =IF(B142=0,NA(),B150) ->  | G154: 30.2 | L154: 30.2 | Q154: 30.2
B155: =IF(B142=0,NA(),B147+B148/2) ->  | C155: =IF(B142=0,NA(),B150) ->  | G155: 30.4 | L155: 30.4 | Q155: 30.4
B156: =IF(B142=0,NA(),B155) ->  | C156: =IF(B142=0,NA(),B149) ->  | G156: 30.6 | L156: 30.6 | Q156: 30.6
B157: =IF(B142=0,NA(),B153) ->  | C157: =IF(B142=0,NA(),C153) ->  | G157: 30.8 | L157: 30.8 | Q157: 30.8
G158: 31 | L158: 31 | Q158: 31
A159: K2 | B159: =IF(B142=0,NA(),C147-C148/2) ->  | C159: =IF(B142=0,NA(),C149) ->  | G159: 31.2 | L159: 31.2 | Q159: 31.2
B160: =IF(B142=0,NA(),B159) ->  | C160: =IF(B142=0,NA(),C150) ->  | G160: 31.4 | L160: 31.4 | Q160: 31.4
B161: =IF(B142=0,NA(),C147+C148/2) ->  | C161: =IF(B142=0,NA(),C150) ->  | G161: 31.6 | L161: 31.6 | Q161: 31.6
B162: =IF(B142=0,NA(),B161) ->  | C162: =IF(B142=0,NA(),C149) ->  | G162: 31.8 | L162: 31.8 | Q162: 31.8
B163: =IF(B142=0,NA(),B159) ->  | C163: =IF(B142=0,NA(),C159) ->  | G163: 32 | L163: 32 | Q163: 32
G164: 32.2 | L164: 32.2 | Q164: 32.2
B165: 0.15 | G165: 32.4 | L165: 32.4 | Q165: 32.4
A166: wheels | B166: =B153+B165*B148 ->  | C166: =B149/2 -> 0.75 | G166: 32.6 | L166: 32.6 | Q166: 32.6
B167: =B155-B165*B148 ->  | C167: =B149/2 -> 0.75 | G167: 32.8 | L167: 32.8 | Q167: 32.8
B168: =B159+B165*C148 ->  | C168: =C149/2 -> 0.75 | G168: 33 | L168: 33 | Q168: 33
B169: =B161-B165*C148 ->  | C169: =C149/2 -> 0.75 | G169: 33.2 | L169: 33.2 | Q169: 33.2
G170: 33.4 | L170: 33.4 | Q170: 33.4
G171: 33.6 | L171: 33.6 | Q171: 33.6
G172: 33.8 | L172: 33.8 | Q172: 33.8
G173: 34 | L173: 34 | Q173: 34
G174: 34.2 | L174: 34.2 | Q174: 34.2
G175: 34.4 | L175: 34.4 | Q175: 34.4
G176: 34.6 | L176: 34.6 | Q176: 34.6
G177: 34.8 | L177: 34.8 | Q177: 34.8
G178: 35 | L178: 35 | Q178: 35
G179: 35.2 | L179: 35.2 | Q179: 35.2
G180: 35.4 | L180: 35.4 | Q180: 35.4
G181: 35.6 | L181: 35.6 | Q181: 35.6
G182: 35.8 | L182: 35.8 | Q182: 35.8
G183: 36 | L183: 36 | Q183: 36
G184: 36.2 | L184: 36.2 | Q184: 36.2
G185: 36.4 | L185: 36.4 | Q185: 36.4
G186: 36.6 | L186: 36.6 | Q186: 36.6
G187: 36.8 | L187: 36.8 | Q187: 36.8
G188: 37 | L188: 37 | Q188: 37
G189: 37.2 | L189: 37.2 | Q189: 37.2
G190: 37.4 | L190: 37.4 | Q190: 37.4
G191: 37.6 | L191: 37.6 | Q191: 37.6
G192: 37.8 | L192: 37.8 | Q192: 37.8
G193: 38 | L193: 38 | Q193: 38
G194: 38.2 | L194: 38.2 | Q194: 38.2
G195: 38.4 | L195: 38.4 | Q195: 38.4
F196: =IF(F195<$I$2,F195+30,NA()) ->  | G196: =G195+$G$2 -> 38.6 | H196: =-1+COS(F196*PI()/180)+G196 ->  | I196: =(F196/$I$2)*($D$8-$D$7)+COS(F196*PI()/180)+$D$7-1 ->  | J196: =$J$2*SIN(F196*PI()/180)+$B$18 ->  | L196: 38.6 | M196: =-1+COS(K196*PI()/180)+L196 ->  | N196: =(K196/$N$2)*($D$13-$D$12)+COS(K196*PI()/180)+$D$12-1 ->  | O196: =$O$2*SIN(K196*PI()/180)+$B$19 ->  | Q196: =Q195+$G$2 -> 38.6 | R196: =-1+COS(P196*PI()/180)+Q196 ->  | S196: =(P196/$S$2)*($D$18-$D$17)+COS(P196*PI()/180)+$D$17-1 ->  | T196: =$T$2*SIN(P196*PI()/180)+$B$20 -> 
G197: 38.8 | K197: =IF(K196<$N$2,K196+30,NA()) ->  | L197: =L196+$L$2 -> 38.8 | P197: =IF(P196<$S$2,P196+30,NA()) ->  | Q197: 38.8
G198: 39 | L198: 39 | Q198: 39
G199: 39.2 | L199: 39.2 | Q199: 39.2
G200: 39.4 | L200: 39.4 | Q200: 39.4
... 1003 more rows
